Department,Entity,Date of Payment,Expense Type,Expense Area,Supplier,Transaction Number,Amount,Description,Supplier Post Code,Supplier Type
"Department for Business, Energy and Industrial Strategy","Department for Business, Energy and Industrial Strategy",04/05/2021,Recoveries Account - Other Payables,Corporate Payments,Amphenol Ltd,391823,9,Default-recoveries Account - Other Payables,CT5 3JF,VENDOR
"Department for Business, Energy and Industrial Strategy","Department for Business, Energy and Industrial Strategy",05/05/2021,Payroll Ogd Recharge,Corporate Payments,Legal And General Assurance Society Ltd,392168,14551.46,Default-payroll Ogd Recharge,CF24 0EB,VENDOR
"Department for Business, Energy and Industrial Strategy","Department for Business, Energy and Industrial Strategy",05/05/2021,Payroll Ogd Recharge,Corporate Payments,Legal And General Assurance Society Ltd,392171,88598.68,Default-payroll Ogd Recharge,CF24 0EB,VENDOR
"Department for Business, Energy and Industrial Strategy","Department for Business, Energy and Industrial Strategy",17/05/2021,Payment To Barclaycard For Erac (Enterprise-rent-a-car),Corporate Payments,Barclays Bank Plc,393714,95.68,Default-payment To Barclaycard For Erac (Enterprise-rent-a-car),TS17 6YT,VENDOR
"Department for Business, Energy and Industrial Strategy","Department for Business, Energy and Industrial Strategy",17/05/2021,Gpc New Procedures,Corporate Payments,Barclays Bank Plc,393716,65152.45,Default-gpc New Procedures,TS17 6YT,VENDOR
"Department for Business, Energy and Industrial Strategy","Department for Business, Energy and Industrial Strategy",18/05/2021,Recoveries Account - Other Payables,Corporate Payments,Leonardo Uk Ltd,393784,199.99,Default-recoveries Account - Other Payables,SS14 3EL,GRANT
"Department for Business, Energy and Industrial Strategy","Department for Business, Energy and Industrial Strategy",20/05/2021,Season Ticket Loan,Corporate Payments,"Ministry Of Housing, Communities & Local Government",394277,383.63,Default-season Ticket Loan,HP2 4XN,WGA ONLY
"Department for Business, Energy and Industrial Strategy","Department for Business, Energy and Industrial Strategy",06/05/2021,Current Grants To Local Government,"Industrial Strategy, Science And Innovation - Business Growth",Cumbria County Council,392306,33087.24,Peer Networks-current Grants To Local Government,CA1 1RD,WGA ONLY
"Department for Business, Energy and Industrial Strategy","Department for Business, Energy and Industrial Strategy",06/05/2021,Current Grants To Local Government,"Industrial Strategy, Science And Innovation - Business Growth",Cumbria County Council,392307,15000,Peer Networks-current Grants To Local Government,CA1 1RD,WGA ONLY
"Department for Business, Energy and Industrial Strategy","Department for Business, Energy and Industrial Strategy",06/05/2021,Current Grants To Local Government,"Industrial Strategy, Science And Innovation - Business Growth",Cumbria County Council,392309,30000,Peer Networks-current Grants To Local Government,CA1 1RD,WGA ONLY
"Department for Business, Energy and Industrial Strategy","Department for Business, Energy and Industrial Strategy",13/05/2021,Current Grants To Local Government,"Industrial Strategy, Science And Innovation - Business Growth",Coventry City Council,392311,156348.69,Peer Networks-current Grants To Local Government,CV1 5RR,WGA ONLY
"Department for Business, Energy and Industrial Strategy","Department for Business, Energy and Industrial Strategy",07/05/2021,Current Grants To Local Government,"Industrial Strategy, Science And Innovation - Business Growth",Oxfordshire County Council,392328,64474.17,Peer Networks-current Grants To Local Government,OX1 1ND,WGA ONLY
"Department for Business, Energy and Industrial Strategy","Department for Business, Energy and Industrial Strategy",07/05/2021,Current Grants To Local Government,"Industrial Strategy, Science And Innovation - Business Growth",Somerset County Council,392330,84000,Peer Networks-current Grants To Local Government,TA1 4DY,WGA ONLY
"Department for Business, Energy and Industrial Strategy","Department for Business, Energy and Industrial Strategy",07/05/2021,Current Grants To Local Government,"Industrial Strategy, Science And Innovation - Business Growth",Sheffield City Region Combined Authority,392354,19733.33,Peer Networks-current Grants To Local Government,S1 2BQ,GRANT
"Department for Business, Energy and Industrial Strategy","Department for Business, Energy and Industrial Strategy",07/05/2021,Current Grants To Private Sector - Npish,"Industrial Strategy, Science And Innovation - Business Growth",The Productivity Group Ltd,392357,364549,Productivity Council-current Grants To Private Sector - Npish,SW1P 1BX,GRANT
"Department for Business, Energy and Industrial Strategy","Department for Business, Energy and Industrial Strategy",07/05/2021,Current Grants To Local Government,"Industrial Strategy, Science And Innovation - Business Growth",Gloucestershire County Council,392382,26569.36,Peer Networks-current Grants To Local Government,GL1 2TG,WGA ONLY
"Department for Business, Energy and Industrial Strategy","Department for Business, Energy and Industrial Strategy",07/05/2021,Current Grants To Local Government,"Industrial Strategy, Science And Innovation - Business Growth",Suffolk County Council,392387,157951.5,Peer Networks-current Grants To Local Government,IP1 2BX,WGA ONLY
"Department for Business, Energy and Industrial Strategy","Department for Business, Energy and Industrial Strategy",07/05/2021,Current Grants To Local Government,"Industrial Strategy, Science And Innovation - Business Growth",Royal Borough Of Windsor And Maidenhead,392389,32365.67,Peer Networks-current Grants To Local Government,SL6 1RF,WGA ONLY
"Department for Business, Energy and Industrial Strategy","Department for Business, Energy and Industrial Strategy",07/05/2021,Current Grants To Local Government,"Industrial Strategy, Science And Innovation - Business Growth",Greater Manchester Combined Authority,392486,614122.95,Peer Networks-current Grants To Local Government,M1 6EU,WGA ONLY
"Department for Business, Energy and Industrial Strategy","Department for Business, Energy and Industrial Strategy",24/05/2021,Marketing And Media,"Industrial Strategy, Science And Innovation - Business Growth",Behavioural Insights Ltd,392504,14991.7,Business Basics In Business Growth-marketing And Media,SW1H 9NP,GRANT
"Department for Business, Energy and Industrial Strategy","Department for Business, Energy and Industrial Strategy",10/05/2021,Current Grants To Local Government,"Industrial Strategy, Science And Innovation - Business Growth",Liverpool City Region Combined Authority,392757,90062.53,Peer Networks-current Grants To Local Government,L3 1BP,VENDOR
"Department for Business, Energy and Industrial Strategy","Department for Business, Energy and Industrial Strategy",10/05/2021,Current Grants To Local Government,"Industrial Strategy, Science And Innovation - Business Growth",Lancashire County Council,392788,87443.6,Peer Networks-current Grants To Local Government,PR1 8XJ,WGA ONLY
"Department for Business, Energy and Industrial Strategy","Department for Business, Energy and Industrial Strategy",10/05/2021,Current Grants To Local Government,"Industrial Strategy, Science And Innovation - Business Growth",Lancashire County Council,392788,159585.76,Peer Networks-current Grants To Local Government,PR1 8XJ,WGA ONLY
"Department for Business, Energy and Industrial Strategy","Department for Business, Energy and Industrial Strategy",10/05/2021,Current Grants To Local Government,"Industrial Strategy, Science And Innovation - Business Growth",Dorset Council,392831,60000,Peer Networks-current Grants To Local Government,DT1 1XJ,VENDOR
"Department for Business, Energy and Industrial Strategy","Department for Business, Energy and Industrial Strategy",10/05/2021,Current Grants To Local Government,"Industrial Strategy, Science And Innovation - Business Growth",Dorset Council,392831,79318,Peer Networks-current Grants To Local Government,DT1 1XJ,VENDOR
"Department for Business, Energy and Industrial Strategy","Department for Business, Energy and Industrial Strategy",10/05/2021,Current Grants To Local Government,"Industrial Strategy, Science And Innovation - Business Growth",Tees Valley Combined Authority,392832,32170.58,Peer Networks-current Grants To Local Government,TS17 6QY,GRANT
"Department for Business, Energy and Industrial Strategy","Department for Business, Energy and Industrial Strategy",10/05/2021,Current Grants To Local Government,"Industrial Strategy, Science And Innovation - Business Growth",Lincolnshire County Council,392833,194303.9,Peer Networks-current Grants To Local Government,LN1 1YL,WGA ONLY
"Department for Business, Energy and Industrial Strategy","Department for Business, Energy and Industrial Strategy",10/05/2021,Current Grants To Local Government,"Industrial Strategy, Science And Innovation - Business Growth",Walsall Metropolitan Borough Council,392835,39200,Peer Networks-current Grants To Local Government,WS1 1TP,GRANT
"Department for Business, Energy and Industrial Strategy","Department for Business, Energy and Industrial Strategy",10/05/2021,Current Grants To Local Government,"Industrial Strategy, Science And Innovation - Business Growth",Hampshire County Council,392938,33363.58,Peer Networks-current Grants To Local Government,SO23 8UJ,WGA ONLY
"Department for Business, Energy and Industrial Strategy","Department for Business, Energy and Industrial Strategy",10/05/2021,Current Grants To Local Government,"Industrial Strategy, Science And Innovation - Business Growth",Luton Borough Council,392944,65181.3,Peer Networks-current Grants To Local Government,LU1 2BQ,GRANT
"Department for Business, Energy and Industrial Strategy","Department for Business, Energy and Industrial Strategy",11/05/2021,Current Grants To Local Government,"Industrial Strategy, Science And Innovation - Business Growth",Worcestershire County Council,393095,75422,Peer Networks-current Grants To Local Government,WR5 2XF,WGA ONLY
"Department for Business, Energy and Industrial Strategy","Department for Business, Energy and Industrial Strategy",11/05/2021,Current Grants To Local Government,"Industrial Strategy, Science And Innovation - Business Growth",Buckinghamshire Council,393109,38415.61,Peer Networks-current Grants To Local Government,HP20 1UD,WGA ONLY
"Department for Business, Energy and Industrial Strategy","Department for Business, Energy and Industrial Strategy",11/05/2021,Current Grants To Local Government,"Industrial Strategy, Science And Innovation - Business Growth",Derbyshire County Council,393123,29943.85,Peer Networks-current Grants To Local Government,DE4 3AG,VENDOR
"Department for Business, Energy and Industrial Strategy","Department for Business, Energy and Industrial Strategy",11/05/2021,Current Grants To Local Government,"Industrial Strategy, Science And Innovation - Business Growth",Derbyshire County Council,393123,191328.04,Peer Networks-current Grants To Local Government,DE4 3AG,VENDOR
"Department for Business, Energy and Industrial Strategy","Department for Business, Energy and Industrial Strategy",11/05/2021,Current Grants To Local Government,"Industrial Strategy, Science And Innovation - Business Growth",Greater London Authority,393126,238571.97,Peer Networks-current Grants To Local Government,SE1 2AA,WGA ONLY
"Department for Business, Energy and Industrial Strategy","Department for Business, Energy and Industrial Strategy",13/05/2021,Current Grants To Local Government,"Industrial Strategy, Science And Innovation - Business Growth",Brighton And Hove City Council,393428,36960.15,Peer Networks-current Grants To Local Government,BN3 3BQ,VENDOR
"Department for Business, Energy and Industrial Strategy","Department for Business, Energy and Industrial Strategy",21/05/2021,Current Grants To Local Government,"Industrial Strategy, Science And Innovation - Business Growth",Hertfordshire County Council,394393,40900,Peer Networks-current Grants To Local Government,SG13 8DF,WGA ONLY
"Department for Business, Energy and Industrial Strategy","Department for Business, Energy and Industrial Strategy",21/05/2021,Current Grants To Local Government,"Industrial Strategy, Science And Innovation - Business Growth",Greater Manchester Combined Authority,394402,467344.45,Peer Networks-current Grants To Local Government,M1 6EU,WGA ONLY
"Department for Business, Energy and Industrial Strategy","Department for Business, Energy and Industrial Strategy",27/05/2021,Current Grants To Private Sector - Npish,"Industrial Strategy, Science And Innovation - Business Growth",The Chartered Association Of Business Schools,395041,193386.38,Small Business Leadership Programme-current Grants To Private Sector - Npish,EC4R 1DD,GRANT
"Department for Business, Energy and Industrial Strategy","Department for Business, Energy and Industrial Strategy",27/05/2021,Current Grants To Local Government,"Industrial Strategy, Science And Innovation - Business Growth",Essex County Council,395135,59614.62,Peer Networks-current Grants To Local Government,CM1 1LX,WGA ONLY
"Department for Business, Energy and Industrial Strategy","Department for Business, Energy and Industrial Strategy",07/05/2021,Other Admin Expenditure,"People, Strategy And Higher Education - Strategy And Growth",Thurrock Borough Council,391852,12166.04,Issi Covid-19 Devolved Admin-other Admin Expenditure,RM17 6LT,VENDOR
"Department for Business, Energy and Industrial Strategy","Department for Business, Energy and Industrial Strategy",07/05/2021,Other Goods/Services,"People, Strategy And Higher Education - Strategy And Growth",Thurrock Borough Council,391852,562078.59,Mf Devolved Admin-other Goods/Services,RM17 6LT,VENDOR
"Department for Business, Energy and Industrial Strategy","Department for Business, Energy and Industrial Strategy",07/05/2021,Other Admin Expenditure,"People, Strategy And Higher Education - Strategy And Growth",Thurrock Borough Council,391856,143310.34,Issi Covid-19 Devolved Admin-other Admin Expenditure,RM17 6LT,VENDOR
"Department for Business, Energy and Industrial Strategy","Department for Business, Energy and Industrial Strategy",07/05/2021,Other Admin Expenditure,"People, Strategy And Higher Education - Strategy And Growth",Thurrock Borough Council,391858,-783152.4,Issi Covid-19 Devolved Admin-other Admin Expenditure,RM17 6LT,VENDOR
"Department for Business, Energy and Industrial Strategy","Department for Business, Energy and Industrial Strategy",07/05/2021,Other Goods/Services,"People, Strategy And Higher Education - Strategy And Growth",Thurrock Borough Council,391858,12166.04,Mf Devolved Admin-other Goods/Services,RM17 6LT,VENDOR
"Department for Business, Energy and Industrial Strategy","Department for Business, Energy and Industrial Strategy",07/05/2021,Other Admin Expenditure,"People, Strategy And Higher Education - Strategy And Growth",Thurrock Borough Council,391858,1240877.8,Issi Covid-19 Devolved Admin-other Admin Expenditure,RM17 6LT,VENDOR
"Department for Business, Energy and Industrial Strategy","Department for Business, Energy and Industrial Strategy",05/05/2021,R & D Outsourced Other,"People, Strategy And Higher Education - Strategy And Growth",Bdrc Continental Ltd,391941,70650,Mf Devolved Admin-r & D Outsourced Other,N1 9LL,VENDOR
"Department for Business, Energy and Industrial Strategy","Department for Business, Energy and Industrial Strategy",07/05/2021,R & D Outsourced Other,"People, Strategy And Higher Education - Strategy And Growth",Bdrc Continental Ltd,392375,4995,Mf Devolved Admin-r & D Outsourced Other,WC1V 7DA,VENDOR
"Department for Business, Energy and Industrial Strategy","Department for Business, Energy and Industrial Strategy",13/05/2021,Other Professional Services,"People, Strategy And Higher Education - Strategy And Growth",Government Actuarys Department,393380,16365.86,Mf Devolved Admin-other Professional Services,SE1 9RJ,WGA ONLY
"Department for Business, Energy and Industrial Strategy","Department for Business, Energy and Industrial Strategy",26/05/2021,Economic Consultancy & Research,Market Frameworks - Dg & Group Support,Economics For The Environment Consultancy Ltd,394833,32130.01,Mf Devolved Admin-economic Consultancy & Research,EC1Y 2AA,VENDOR
"Department for Business, Energy and Industrial Strategy","Department for Business, Energy and Industrial Strategy",04/05/2021,Legal Services And Advice Agency,Market Frameworks - Dg & Group Support,Government Legal Department,391266,475.8,Mf Devolved Admin-legal Services And Advice Agency,SW1H 9JS,VENDOR
"Department for Business, Energy and Industrial Strategy","Department for Business, Energy and Industrial Strategy",05/05/2021,Other It Consultancy,Scin - Ofc Negotiations - Scin - Ofc Negotiations,Cognizant Worldwide Ltd,391440,9394.22,Eu Exit: No Specific Dexeu Issue Prog-other It Consultancy,W2 6BD,VENDOR
"Department for Business, Energy and Industrial Strategy","Department for Business, Energy and Industrial Strategy",04/05/2021,Outsourced Programme Management,Energy Transformation And Clean Growth - Energy Efficiency And Local,Informa Markets (Uk) Ltd,391896,3249.48,Hnip Delivery Programme Expenditure-outsourced Programme Management,SW1P 1WG,VENDOR
"Department for Business, Energy and Industrial Strategy","Department for Business, Energy and Industrial Strategy",11/05/2021,Research And Development Expenditure,Energy Transformation And Clean Growth - Energy Efficiency And Local,Ove Arup And Partners Ltd,392160,-25983.67,Hnip Delivery Programme Expenditure-research And Development Expenditure,NE1 3PL,VENDOR
"Department for Business, Energy and Industrial Strategy","Department for Business, Energy and Industrial Strategy",11/05/2021,Research And Development Expenditure,Energy Transformation And Clean Growth - Energy Efficiency And Local,Ove Arup And Partners Ltd,392160,57606.1,Hnip Delivery Programme Expenditure-research And Development Expenditure,NE1 3PL,VENDOR
"Department for Business, Energy and Industrial Strategy","Department for Business, Energy and Industrial Strategy",11/05/2021,Current Grants To Local Government,Energy Transformation And Clean Growth - Energy Efficiency And Local,Eden District Council,393071,4991,Hndu Pipeline And Related Expenditure-current Grants To Local Government,CA11 7QF,WGA ONLY
"Department for Business, Energy and Industrial Strategy","Department for Business, Energy and Industrial Strategy",11/05/2021,Exp - Miscellaneous Expenditure - Iexpenses,Energy Transformation And Clean Growth - Energy Efficiency And Local,"Personal Expense, Name Withheld",393145,213.75,Hndu Pipeline And Related Expenditure-exp - Miscellaneous Expenditure - Iexpenses,,EMPLOYEE
"Department for Business, Energy and Industrial Strategy","Department for Business, Energy and Industrial Strategy",12/05/2021,Research And Development Expenditure,Energy Transformation And Clean Growth - Energy Efficiency And Local,Cag Consult Llp T/A Cag Consultants,393302,5956.25,Hnip Delivery Programme Expenditure-research And Development Expenditure,EC3N 1LS,VENDOR
"Department for Business, Energy and Industrial Strategy","Department for Business, Energy and Industrial Strategy",12/05/2021,Research And Development Expenditure,Energy Transformation And Clean Growth - Energy Efficiency And Local,Cag Consult Llp T/A Cag Consultants,393304,2000,Hnip Delivery Programme Expenditure-research And Development Expenditure,EC3N 1LS,VENDOR
"Department for Business, Energy and Industrial Strategy","Department for Business, Energy and Industrial Strategy",13/05/2021,Outsourced Programme Management,Energy Transformation And Clean Growth - Energy Efficiency And Local,Triple Point Investment Management Llp,393490,265347.9,Hnip Delivery Programme Expenditure-outsourced Programme Management,EC4N 7AF,VENDOR
"Department for Business, Energy and Industrial Strategy","Department for Business, Energy and Industrial Strategy",18/05/2021,Exp - Miscellaneous Expenditure - Iexpenses,Energy Transformation And Clean Growth - Energy Efficiency And Local,"Personal Expense, Name Withheld",393895,202.12,Mf Devolved Admin-exp - Miscellaneous Expenditure - Iexpenses,,EMPLOYEE
"Department for Business, Energy and Industrial Strategy","Department for Business, Energy and Industrial Strategy",18/05/2021,Stationery,Energy Transformation And Clean Growth - Energy Efficiency And Local,"Personal Expense, Name Withheld",393915,53.94,Hndu Pipeline And Related Expenditure-stationery,,EMPLOYEE
"Department for Business, Energy and Industrial Strategy","Department for Business, Energy and Industrial Strategy",18/05/2021,Business Rates,"Trade, Europe And Analysis - Analysis Directorate",Webhose Ltd,393652,6056.4,Mf Devolved Admin-business Rates,5126112,VENDOR
"Department for Business, Energy and Industrial Strategy","Department for Business, Energy and Industrial Strategy",05/05/2021,Stationery,"Trade, Europe And Analysis - Analysis Directorate","Personal Expense, Name Withheld",392037,73.27,Mf Devolved Admin-stationery,,EMPLOYEE
"Department for Business, Energy and Industrial Strategy","Department for Business, Energy and Industrial Strategy",25/05/2021,Recruitment Consultancy Costs,"Trade, Europe And Analysis - Analysis Directorate",Hm Revenue And Customs,394847,12300,Mf Devolved Admin-recruitment Consultancy Costs,BN12 4XH,WGA ONLY
"Department for Business, Energy and Industrial Strategy","Department for Business, Energy and Industrial Strategy",20/05/2021,Stationery,"Trade, Europe And Analysis - Analysis Directorate","Personal Expense, Name Withheld",394303,109.99,Mf Devolved Admin-stationery,,EMPLOYEE
"Department for Business, Energy and Industrial Strategy","Department for Business, Energy and Industrial Strategy",10/05/2021,Ict Outsourcing & Maintenance/Support,"Trade, Europe And Analysis - Analysis Directorate",Progravitas Ltd,379753,-9520.49,Mf Devolved Admin-ict Outsourcing & Maintenance/Support,SG8 6DT,VENDOR
"Department for Business, Energy and Industrial Strategy","Department for Business, Energy and Industrial Strategy",10/05/2021,Ict Outsourcing & Maintenance/Support,"Trade, Europe And Analysis - Analysis Directorate",Progravitas Ltd,379753,14290.98,Mf Devolved Admin-ict Outsourcing & Maintenance/Support,SG8 6DT,VENDOR
"Department for Business, Energy and Industrial Strategy","Department for Business, Energy and Industrial Strategy",10/05/2021,Ict Outsourcing & Maintenance/Support,"Trade, Europe And Analysis - Analysis Directorate",Progravitas Ltd,379753,15240.98,Mf Devolved Admin-ict Outsourcing & Maintenance/Support,SG8 6DT,VENDOR
"Department for Business, Energy and Industrial Strategy","Department for Business, Energy and Industrial Strategy",10/05/2021,Ict Outsourcing & Maintenance/Support,"Trade, Europe And Analysis - Analysis Directorate",Progravitas Ltd,383817,-4500,Mf Devolved Admin-ict Outsourcing & Maintenance/Support,SG8 6DT,VENDOR
"Department for Business, Energy and Industrial Strategy","Department for Business, Energy and Industrial Strategy",10/05/2021,Ict Outsourcing & Maintenance/Support,"Trade, Europe And Analysis - Analysis Directorate",Progravitas Ltd,383817,9900,Mf Devolved Admin-ict Outsourcing & Maintenance/Support,SG8 6DT,VENDOR
"Department for Business, Energy and Industrial Strategy","Department for Business, Energy and Industrial Strategy",04/05/2021,Ict Outsourcing & Maintenance/Support,"Trade, Europe And Analysis - Analysis Directorate",Acuity Training Ltd,391490,2940,Mf Devolved Admin-ict Outsourcing & Maintenance/Support,GU2 7YG,VENDOR
"Department for Business, Energy and Industrial Strategy","Department for Business, Energy and Industrial Strategy",06/05/2021,Ict Outsourcing & Maintenance/Support,"Trade, Europe And Analysis - Analysis Directorate",Alexander Mann Solutions Ltd,391984,7056.67,Mf Devolved Admin-ict Outsourcing & Maintenance/Support,EC2N 3AQ,VENDOR
"Department for Business, Energy and Industrial Strategy","Department for Business, Energy and Industrial Strategy",06/05/2021,Ict Outsourcing & Maintenance/Support,"Trade, Europe And Analysis - Analysis Directorate",Mango Business Solutions Ltd,392009,7288,Mf Devolved Admin-ict Outsourcing & Maintenance/Support,SN14 0GB,VENDOR
"Department for Business, Energy and Industrial Strategy","Department for Business, Energy and Industrial Strategy",11/05/2021,Ict Outsourcing & Maintenance/Support,"Trade, Europe And Analysis - Analysis Directorate",Acuity Training Ltd,392237,4410,Mf Devolved Admin-ict Outsourcing & Maintenance/Support,GU2 7YG,VENDOR
"Department for Business, Energy and Industrial Strategy","Department for Business, Energy and Industrial Strategy",07/05/2021,Ict Outsourcing & Maintenance/Support,"Trade, Europe And Analysis - Analysis Directorate",Logix It Recruitment Ltd,392239,10500,Mf Devolved Admin-ict Outsourcing & Maintenance/Support,BR1 1NA,VENDOR
"Department for Business, Energy and Industrial Strategy","Department for Business, Energy and Industrial Strategy",06/05/2021,Ict Outsourcing & Maintenance/Support,"Trade, Europe And Analysis - Analysis Directorate",People Source Consulting Ltd,392243,13800,Mf Devolved Admin-ict Outsourcing & Maintenance/Support,BS1 6BA,VENDOR
"Department for Business, Energy and Industrial Strategy","Department for Business, Energy and Industrial Strategy",06/05/2021,Ict Outsourcing & Maintenance/Support,"Trade, Europe And Analysis - Analysis Directorate",Logix It Recruitment Ltd,392252,4750,Mf Devolved Admin-ict Outsourcing & Maintenance/Support,BR1 1NA,VENDOR
"Department for Business, Energy and Industrial Strategy","Department for Business, Energy and Industrial Strategy",12/05/2021,Ict Outsourcing & Maintenance/Support,"Trade, Europe And Analysis - Analysis Directorate",G33k Ltd,392338,10500,Mf Devolved Admin-ict Outsourcing & Maintenance/Support,SL1 6LG,VENDOR
"Department for Business, Energy and Industrial Strategy","Department for Business, Energy and Industrial Strategy",07/05/2021,Ict Outsourcing & Maintenance/Support,"Trade, Europe And Analysis - Analysis Directorate",Code It Recruitment Ltd,392388,10800,Mf Devolved Admin-ict Outsourcing & Maintenance/Support,EC2R 5BJ,VENDOR
"Department for Business, Energy and Industrial Strategy","Department for Business, Energy and Industrial Strategy",12/05/2021,Ict Outsourcing & Maintenance/Support,"Trade, Europe And Analysis - Analysis Directorate",Fordway Solutions Ltd,393230,14300,Mf Devolved Admin-ict Outsourcing & Maintenance/Support,GU7 1JJ,VENDOR
"Department for Business, Energy and Industrial Strategy","Department for Business, Energy and Industrial Strategy",12/05/2021,Ict Outsourcing & Maintenance/Support,"Trade, Europe And Analysis - Analysis Directorate",Fordway Solutions Ltd,393231,158777.56,Mf Devolved Admin-ict Outsourcing & Maintenance/Support,GU7 1JJ,VENDOR
"Department for Business, Energy and Industrial Strategy","Department for Business, Energy and Industrial Strategy",13/05/2021,Ict Outsourcing & Maintenance/Support,"Trade, Europe And Analysis - Analysis Directorate",People Source Consulting Ltd,393368,8400,Mf Devolved Admin-ict Outsourcing & Maintenance/Support,BS1 6BA,VENDOR
"Department for Business, Energy and Industrial Strategy","Department for Business, Energy and Industrial Strategy",18/05/2021,R & D Economic Consultancy And Research,"Trade, Europe And Analysis - Analysis Directorate",Banksearch Information Consultancy Ltd,393830,21000,Construction: Statistics And Other Sponsorship Activities-r & D Economic Consultancy And Research,CV23 0UD,VENDOR
"Department for Business, Energy and Industrial Strategy","Department for Business, Energy and Industrial Strategy",18/05/2021,Stationery,"Trade, Europe And Analysis - Analysis Directorate","Personal Expense, Name Withheld",393910,170.35,Mf Devolved Admin-stationery,,EMPLOYEE
"Department for Business, Energy and Industrial Strategy","Department for Business, Energy and Industrial Strategy",19/05/2021,Ict Outsourcing & Maintenance/Support,"Trade, Europe And Analysis - Analysis Directorate",Acuity Training Ltd,394209,1470,Mf Devolved Admin-ict Outsourcing & Maintenance/Support,GU2 7YG,VENDOR
"Department for Business, Energy and Industrial Strategy","Department for Business, Energy and Industrial Strategy",25/05/2021,R & D Economic Consultancy And Research,"Trade, Europe And Analysis - Analysis Directorate",Business And Trade Statistics Ltd,394611,3144,Construction: Statistics And Other Sponsorship Activities-r & D Economic Consultancy And Research,KT9 1BD,VENDOR
"Department for Business, Energy and Industrial Strategy","Department for Business, Energy and Industrial Strategy",12/05/2021,Stationery,"Trade, Europe And Analysis - Analysis Directorate","Personal Expense, Name Withheld",393209,26,Mf Devolved Admin-stationery,,EMPLOYEE
"Department for Business, Energy and Industrial Strategy","Department for Business, Energy and Industrial Strategy",18/05/2021,Stationery,"Trade, Europe And Analysis - Analysis Directorate","Personal Expense, Name Withheld",393835,26,Mf Devolved Admin-stationery,,EMPLOYEE
"Department for Business, Energy and Industrial Strategy","Department for Business, Energy and Industrial Strategy",07/05/2021,Technical Advice / Services & Support,Market Frameworks - Regulation Executive,The Dextrous Web Ltd T/A Dxw,392337,48706,Eu Exit: No Specific Dexeu Issue Prog-technical Advice / Services & Support,LS2 7EW,VENDOR
"Department for Business, Energy and Industrial Strategy","Department for Business, Energy and Industrial Strategy",14/05/2021,Consultancy Expenditure,Market Frameworks - Office For Product Safety And Standards,Lgc Ltd,387688,-9747,Opss: National Capacity Testing-consultancy Expenditure,TW11 0LY,GRANT
"Department for Business, Energy and Industrial Strategy","Department for Business, Energy and Industrial Strategy",14/05/2021,Consultancy Expenditure,Market Frameworks - Office For Product Safety And Standards,Lgc Ltd,387688,2925.35,Opss: National Capacity Testing-consultancy Expenditure,TW11 0LY,GRANT
"Department for Business, Energy and Industrial Strategy","Department for Business, Energy and Industrial Strategy",14/05/2021,Consultancy Expenditure,Market Frameworks - Office For Product Safety And Standards,Lgc Ltd,387688,5578.65,Opss: National Capacity Testing-consultancy Expenditure,TW11 0LY,GRANT
"Department for Business, Energy and Industrial Strategy","Department for Business, Energy and Industrial Strategy",14/05/2021,Consultancy Expenditure,Market Frameworks - Office For Product Safety And Standards,Lgc Ltd,387688,10990,Opss: National Capacity Testing-consultancy Expenditure,TW11 0LY,GRANT
"Department for Business, Energy and Industrial Strategy","Department for Business, Energy and Industrial Strategy",18/05/2021,Current Grants To Local Government,Market Frameworks - Office For Product Safety And Standards,Mid Ulster District Council,387968,-12460,Opss: Eu Markets Surveillance-current Grants To Local Government,BT80 8DT,VENDOR
"Department for Business, Energy and Industrial Strategy","Department for Business, Energy and Industrial Strategy",05/05/2021,Other Professional Services,Market Frameworks - Office For Product Safety And Standards,London Economics Ltd,391746,13476,Opss: National Capacity Scientific And Technical-other Professional Services,WC2R 1LA,VENDOR
"Department for Business, Energy and Industrial Strategy","Department for Business, Energy and Industrial Strategy",04/05/2021,Facilities Management Contract,Market Frameworks - Office For Product Safety And Standards,Npl Management Ltd,391813,27389.8,Opss: National Capacity Organisational Cross Cutting-facilities Management Contract,TW11 0LW,VENDOR
"Department for Business, Energy and Industrial Strategy","Department for Business, Energy and Industrial Strategy",04/05/2021,Current Grants To Local Government,Market Frameworks - Office For Product Safety And Standards,Essex County Council,391827,6672,Opss: National Capacity Enforcement-current Grants To Local Government,CM1 1JZ,WGA ONLY
"Department for Business, Energy and Industrial Strategy","Department for Business, Energy and Industrial Strategy",04/05/2021,Current Grants To Local Government,Market Frameworks - Office For Product Safety And Standards,Warwickshire County Council,391840,2095.63,Opss: National Capacity Enforcement-current Grants To Local Government,CV35 7DP,GRANT
"Department for Business, Energy and Industrial Strategy","Department for Business, Energy and Industrial Strategy",04/05/2021,Professional Subscriptions,Market Frameworks - Office For Product Safety And Standards,"Personal Expense, Name Withheld",391863,127,Mf Devolved Admin-professional Subscriptions,,EMPLOYEE
"Department for Business, Energy and Industrial Strategy","Department for Business, Energy and Industrial Strategy",04/05/2021,Exp - Miscellaneous Expenditure - Iexpenses,Market Frameworks - Office For Product Safety And Standards,"Personal Expense, Name Withheld",391863,203.67,Mf Devolved Admin-exp - Miscellaneous Expenditure - Iexpenses,,EMPLOYEE
"Department for Business, Energy and Industrial Strategy","Department for Business, Energy and Industrial Strategy",05/05/2021,Current Grants To Local Government,Market Frameworks - Office For Product Safety And Standards,Southampton City Council,391943,33086.93,Opss: National Capacity Enforcement-current Grants To Local Government,SO14 7LY,VENDOR
"Department for Business, Energy and Industrial Strategy","Department for Business, Energy and Industrial Strategy",06/05/2021,Gas,Market Frameworks - Office For Product Safety And Standards,Corona Energy Retail 4 Ltd,392219,2601.41,Opss: Central/Core-gas,WD17 1JW,VENDOR
"Department for Business, Energy and Industrial Strategy","Department for Business, Energy and Industrial Strategy",13/05/2021,Gas,Market Frameworks - Office For Product Safety And Standards,Corona Energy Retail 4 Ltd,392224,3550.9,Opss: Central/Core-gas,WD17 1JW,VENDOR
"Department for Business, Energy and Industrial Strategy","Department for Business, Energy and Industrial Strategy",13/05/2021,Gas,Market Frameworks - Office For Product Safety And Standards,Corona Energy Retail 4 Ltd,392225,3301.1,Opss: Central/Core-gas,WD17 1JW,VENDOR
"Department for Business, Energy and Industrial Strategy","Department for Business, Energy and Industrial Strategy",06/05/2021,Clearing Account   - Cost - Information Technology,Market Frameworks - Office For Product Safety And Standards,Kalpaitch Ltd,392236,18000,Opss: Primary Authority-clearing Account   - Cost - Information Technology,SE5 9PG,VENDOR
"Department for Business, Energy and Industrial Strategy","Department for Business, Energy and Industrial Strategy",25/05/2021,Other Programme Cost Recoveries,Market Frameworks - Office For Product Safety And Standards,Association Of Manufacturers Of Domestic Appliances,392359,-1999.8,Opss: National Capacity Enforcement-other Programme Cost Recoveries,SE1 7TL,GRANT
"Department for Business, Energy and Industrial Strategy","Department for Business, Energy and Industrial Strategy",25/05/2021,Other Programme Cost Recoveries,Market Frameworks - Office For Product Safety And Standards,Association Of Manufacturers Of Domestic Appliances,392359,13998.6,Opss: National Capacity Enforcement-other Programme Cost Recoveries,SE1 7TL,GRANT
"Department for Business, Energy and Industrial Strategy","Department for Business, Energy and Industrial Strategy",12/05/2021,Professional Subscriptions,Market Frameworks - Office For Product Safety And Standards,Relx (Uk) Ltd,392360,-1635.56,Opss: Cross Cutting-professional Subscriptions,SM2 5AS,VENDOR
"Department for Business, Energy and Industrial Strategy","Department for Business, Energy and Industrial Strategy",12/05/2021,Professional Subscriptions,Market Frameworks - Office For Product Safety And Standards,Relx (Uk) Ltd,392360,3271.12,Opss: Cross Cutting-professional Subscriptions,SM2 5AS,VENDOR
"Department for Business, Energy and Industrial Strategy","Department for Business, Energy and Industrial Strategy",07/05/2021,Current Grants To Private Sector - Npish,Market Frameworks - Office For Product Safety And Standards,Rospa Enterprises Ltd,392379,20000,Opss: National Capacity Market Surveilance And Consumer-current Grants To Private Sector - Npish,B15 1RP,VENDOR
"Department for Business, Energy and Industrial Strategy","Department for Business, Energy and Industrial Strategy",07/05/2021,Current Grants To Local Government,Market Frameworks - Office For Product Safety And Standards,Leicestershire County Council,392390,37213.4,Opss: National Capacity Enforcement-current Grants To Local Government,LE3 8RL,GRANT
"Department for Business, Energy and Industrial Strategy","Department for Business, Energy and Industrial Strategy",10/05/2021,Other Professional Services,Market Frameworks - Office For Product Safety And Standards,Cleveland Containers Ltd,392674,158.63,Opss: National Capacity Testing-other Professional Services,TS18 3TX,VENDOR
"Department for Business, Energy and Industrial Strategy","Department for Business, Energy and Industrial Strategy",10/05/2021,Current Grants To Local Government,Market Frameworks - Office For Product Safety And Standards,Kent County Council,392679,21818.26,Opss: National Capacity Enforcement-current Grants To Local Government,ME19 4YT,VENDOR
"Department for Business, Energy and Industrial Strategy","Department for Business, Energy and Industrial Strategy",10/05/2021,Other Professional Services,Market Frameworks - Office For Product Safety And Standards,Yougov Plc,392682,5600,Opss: Evaluation And Research-other Professional Services,EC1Y 8RT,VENDOR
"Department for Business, Energy and Industrial Strategy","Department for Business, Energy and Industrial Strategy",10/05/2021,Other Professional Services,Market Frameworks - Office For Product Safety And Standards,Veracity Osi Uk Ltd,392690,21967.5,Opss: National Capacity Organisational Cross Cutting-other Professional Services,EC3R 8LJ,VENDOR
"Department for Business, Energy and Industrial Strategy","Department for Business, Energy and Industrial Strategy",10/05/2021,External Training,Market Frameworks - Office For Product Safety And Standards,Serco Ltd,392820,1670,Opss: National Capacity Incident Management-external Training,RG27 7FR,VENDOR
"Department for Business, Energy and Industrial Strategy","Department for Business, Energy and Industrial Strategy",10/05/2021,Stationery,Market Frameworks - Office For Product Safety And Standards,"Personal Expense, Name Withheld",392915,45.99,Opss: National Capacity Organisational Cross Cutting-stationery,,EMPLOYEE
"Department for Business, Energy and Industrial Strategy","Department for Business, Energy and Industrial Strategy",11/05/2021,Clearing Account   - Cost - Information Technology,Market Frameworks - Office For Product Safety And Standards,Smartsourcing Ltd,393089,11700,Opss: Eu Markets Surveillance-clearing Account   - Cost - Information Technology,SS7 1PE,VENDOR
"Department for Business, Energy and Industrial Strategy","Department for Business, Energy and Industrial Strategy",11/05/2021,Professional Subscriptions,Market Frameworks - Office For Product Safety And Standards,"Personal Expense, Name Withheld",393139,132,Opss: Primary Authority-professional Subscriptions,,EMPLOYEE
"Department for Business, Energy and Industrial Strategy","Department for Business, Energy and Industrial Strategy",12/05/2021,Stationery,Market Frameworks - Office For Product Safety And Standards,"Personal Expense, Name Withheld",393211,26,Mf Devolved Admin-stationery,,EMPLOYEE
"Department for Business, Energy and Industrial Strategy","Department for Business, Energy and Industrial Strategy",13/05/2021,Clearing Account - Cost - Assets Under Construction - Freehold Building,Market Frameworks - Office For Product Safety And Standards,Government Property Agency,393224,-10253.92,Opss: National Capacity Market Surveilance And Consumer-clearing Account - Cost - Assets Under Construction - Freehold Building,B2 5LS,VENDOR
"Department for Business, Energy and Industrial Strategy","Department for Business, Energy and Industrial Strategy",13/05/2021,Clearing Account - Cost - Assets Under Construction - Freehold Building,Market Frameworks - Office For Product Safety And Standards,Government Property Agency,393224,20507.84,Opss: National Capacity Market Surveilance And Consumer-clearing Account - Cost - Assets Under Construction - Freehold Building,B2 5LS,VENDOR
"Department for Business, Energy and Industrial Strategy","Department for Business, Energy and Industrial Strategy",12/05/2021,Technical Advice / Services & Support,Market Frameworks - Office For Product Safety And Standards,Maintel Europe Ltd,393229,159.1,Opss: National Capacity Organisational Cross Cutting-technical Advice / Services & Support,SE1 8EZ,VENDOR
"Department for Business, Energy and Industrial Strategy","Department for Business, Energy and Industrial Strategy",12/05/2021,External Legal Advice And Service,Market Frameworks - Office For Product Safety And Standards,6 Kbw College Hill,393234,415,Opss: National Capacity Enforcement-external Legal Advice And Service,EC4R 2RP,VENDOR
"Department for Business, Energy and Industrial Strategy","Department for Business, Energy and Industrial Strategy",18/05/2021,Other Professional Services,Market Frameworks - Office For Product Safety And Standards,Janman Consulting Ltd,393245,3000,Opss: National Capacity Organisational Cross Cutting-other Professional Services,GU8 5RA,VENDOR
"Department for Business, Energy and Industrial Strategy","Department for Business, Energy and Industrial Strategy",12/05/2021,Clearing Account   - Cost - Information Technology,Market Frameworks - Office For Product Safety And Standards,Investigo Ltd,393257,660,Opss: Eu Markets Surveillance-clearing Account   - Cost - Information Technology,EC2M 2QS,VENDOR
"Department for Business, Energy and Industrial Strategy","Department for Business, Energy and Industrial Strategy",12/05/2021,Facilities Management Contract,Market Frameworks - Office For Product Safety And Standards,Npl Management Ltd,393260,24333,Opss: National Capacity Organisational Cross Cutting-facilities Management Contract,TW11 0LW,VENDOR
"Department for Business, Energy and Industrial Strategy","Department for Business, Energy and Industrial Strategy",13/05/2021,Other Travel,Market Frameworks - Office For Product Safety And Standards,"Personal Expense, Name Withheld",393408,22.06,Opss: National Capacity Co-ordination-other Travel,,EMPLOYEE
"Department for Business, Energy and Industrial Strategy","Department for Business, Energy and Industrial Strategy",13/05/2021,Mileage Allowance Uk,Market Frameworks - Office For Product Safety And Standards,"Personal Expense, Name Withheld",393408,90,Opss: National Capacity Co-ordination-mileage Allowance Uk,,EMPLOYEE
"Department for Business, Energy and Industrial Strategy","Department for Business, Energy and Industrial Strategy",13/05/2021,Consultancy Expenditure,Market Frameworks - Office For Product Safety And Standards,Rina Tech Uk Ltd,393431,1385,Opss: Implementation-consultancy Expenditure,KT22 7SA,VENDOR
"Department for Business, Energy and Industrial Strategy","Department for Business, Energy and Industrial Strategy",13/05/2021,Storage And Distribution,Market Frameworks - Office For Product Safety And Standards,Big Yellow Self Storage Company Ltd,393491,444.17,Opss: Innovating For Growth-storage And Distribution,GU19 5AT,VENDOR
"Department for Business, Energy and Industrial Strategy","Department for Business, Energy and Industrial Strategy",14/05/2021,Clearing Account   - Cost - Information Technology,Market Frameworks - Office For Product Safety And Standards,Smartsourcing Ltd,393502,11700,Opss: Eu Markets Surveillance-clearing Account   - Cost - Information Technology,SS7 1PE,VENDOR
"Department for Business, Energy and Industrial Strategy","Department for Business, Energy and Industrial Strategy",14/05/2021,Current Grants To Local Government,Market Frameworks - Office For Product Safety And Standards,Fermanagh And Omagh District Council,393503,27140,Opss: Eu Markets Surveillance-current Grants To Local Government,BT74 7BA,VENDOR
"Department for Business, Energy and Industrial Strategy","Department for Business, Energy and Industrial Strategy",14/05/2021,Marketing And Media,Market Frameworks - Office For Product Safety And Standards,Precise Media Monitoring Ltd,393519,23.44,Opss: Product Development-marketing And Media,WC1X 8HB,VENDOR
"Department for Business, Energy and Industrial Strategy","Department for Business, Energy and Industrial Strategy",14/05/2021,Exp - Miscellaneous Expenditure - Iexpenses,Market Frameworks - Office For Product Safety And Standards,"Personal Expense, Name Withheld",393565,116.97,Opss: National Capacity Organisational Cross Cutting-exp - Miscellaneous Expenditure - Iexpenses,,EMPLOYEE
"Department for Business, Energy and Industrial Strategy","Department for Business, Energy and Industrial Strategy",17/05/2021,It Services,Market Frameworks - Office For Product Safety And Standards,Granicus-firmstep Ltd,393689,5365.5,Opss: National Capacity Enforcement-it Services,EC2A 2DT,VENDOR
"Department for Business, Energy and Industrial Strategy","Department for Business, Energy and Industrial Strategy",17/05/2021,Other Professional Services,Market Frameworks - Office For Product Safety And Standards,Imperial College London,393713,2000,Opss: National Capacity Scientific And Technical-other Professional Services,SW7 2AZ,WGA ONLY
"Department for Business, Energy and Industrial Strategy","Department for Business, Energy and Industrial Strategy",19/05/2021,Stationery,Market Frameworks - Office For Product Safety And Standards,"Personal Expense, Name Withheld",393735,72.26,Opss: National Capacity Scientific And Technical-stationery,,EMPLOYEE
"Department for Business, Energy and Industrial Strategy","Department for Business, Energy and Industrial Strategy",19/05/2021,Consultancy Expenditure,Market Frameworks - Office For Product Safety And Standards,Glisser Ltd,393750,5994,Opss: Regulatory Coordination-consultancy Expenditure,EC2A 4NE,VENDOR
"Department for Business, Energy and Industrial Strategy","Department for Business, Energy and Industrial Strategy",17/05/2021,Other Professional Services,Market Frameworks - Office For Product Safety And Standards,Oneresolution,393781,840,Opss: Innovating For Growth-other Professional Services,IP13 7AE,VENDOR
"Department for Business, Energy and Industrial Strategy","Department for Business, Energy and Industrial Strategy",18/05/2021,Current Grants To Local Government,Market Frameworks - Office For Product Safety And Standards,Hampshire County Council,393849,35690.24,Opss: National Capacity Enforcement-current Grants To Local Government,SO22 5PW,WGA ONLY
"Department for Business, Energy and Industrial Strategy","Department for Business, Energy and Industrial Strategy",18/05/2021,Current Grants To Local Government,Market Frameworks - Office For Product Safety And Standards,Ards And North Down Borough Council,393850,31255,Opss: Eu Markets Surveillance-current Grants To Local Government,BT20 4BT,VENDOR
"Department for Business, Energy and Industrial Strategy","Department for Business, Energy and Industrial Strategy",21/05/2021,Other Professional Services,Market Frameworks - Office For Product Safety And Standards,Lgc Ltd,393856,2400,Opss: National Capacity Testing-other Professional Services,TW11 0LY,GRANT
"Department for Business, Energy and Industrial Strategy","Department for Business, Energy and Industrial Strategy",18/05/2021,Current Grants To Local Government,Market Frameworks - Office For Product Safety And Standards,London Borough Of Hillingdon,393892,41603.26,Opss: National Capacity Enforcement-current Grants To Local Government,UB8 1UW,VENDOR
"Department for Business, Energy and Industrial Strategy","Department for Business, Energy and Industrial Strategy",18/05/2021,Current Grants To Local Government,Market Frameworks - Office For Product Safety And Standards,Mid Ulster District Council,393893,42540,Opss: Eu Markets Surveillance-current Grants To Local Government,BT80 8DT,VENDOR
"Department for Business, Energy and Industrial Strategy","Department for Business, Energy and Industrial Strategy",18/05/2021,Exp - Miscellaneous Expenditure - Iexpenses,Market Frameworks - Office For Product Safety And Standards,"Personal Expense, Name Withheld",393917,44.99,Opss: National Capacity Testing-exp - Miscellaneous Expenditure - Iexpenses,,EMPLOYEE
"Department for Business, Energy and Industrial Strategy","Department for Business, Energy and Industrial Strategy",20/05/2021,Clearing Account   - Cost - Information Technology,Market Frameworks - Office For Product Safety And Standards,Adroc Ltd,394145,20400,Opss: Eu Markets Surveillance-clearing Account   - Cost - Information Technology,EC2N 1HN,VENDOR
"Department for Business, Energy and Industrial Strategy","Department for Business, Energy and Industrial Strategy",20/05/2021,Clearing Account   - Cost - Information Technology,Market Frameworks - Office For Product Safety And Standards,Adroc Ltd,394150,16200,Opss: Eu Markets Surveillance-clearing Account   - Cost - Information Technology,EC2N 1HN,VENDOR
"Department for Business, Energy and Industrial Strategy","Department for Business, Energy and Industrial Strategy",20/05/2021,Clearing Account   - Cost - Information Technology,Market Frameworks - Office For Product Safety And Standards,Adroc Ltd,394151,18000,Opss: Eu Markets Surveillance-clearing Account   - Cost - Information Technology,EC2N 1HN,VENDOR
"Department for Business, Energy and Industrial Strategy","Department for Business, Energy and Industrial Strategy",20/05/2021,Clearing Account   - Cost - Information Technology,Market Frameworks - Office For Product Safety And Standards,Adroc Ltd,394153,17100,Opss: Eu Markets Surveillance-clearing Account   - Cost - Information Technology,EC2N 1HN,VENDOR
"Department for Business, Energy and Industrial Strategy","Department for Business, Energy and Industrial Strategy",20/05/2021,Stationery,Market Frameworks - Office For Product Safety And Standards,"Personal Expense, Name Withheld",394305,266.07,Opss: National Capacity Organisational Cross Cutting-stationery,,EMPLOYEE
"Department for Business, Energy and Industrial Strategy","Department for Business, Energy and Industrial Strategy",20/05/2021,Professional Training,Market Frameworks - Office For Product Safety And Standards,"Personal Expense, Name Withheld",394307,121.5,Opss: Cross Cutting-professional Training,,EMPLOYEE
"Department for Business, Energy and Industrial Strategy","Department for Business, Energy and Industrial Strategy",21/05/2021,Clearing Account   - Cost - Information Technology,Market Frameworks - Office For Product Safety And Standards,Nash Technologies And Consulting Ltd,394461,13650,Opss: Eu Markets Surveillance-clearing Account   - Cost - Information Technology,B28 8RN,VENDOR
"Department for Business, Energy and Industrial Strategy","Department for Business, Energy and Industrial Strategy",21/05/2021,Professional Subscriptions,Market Frameworks - Office For Product Safety And Standards,Bmta,394469,568.8,Opss: Legal Metrology Programme Certification-professional Subscriptions,ME19 6BJ,VENDOR
"Department for Business, Energy and Industrial Strategy","Department for Business, Energy and Industrial Strategy",24/05/2021,Facilities Management Contract,Market Frameworks - Office For Product Safety And Standards,Npl Management Ltd,394490,8984.02,Opss: Central/Core-facilities Management Contract,TW11 0LW,VENDOR
"Department for Business, Energy and Industrial Strategy","Department for Business, Energy and Industrial Strategy",24/05/2021,Facilities Management Contract,Market Frameworks - Office For Product Safety And Standards,Npl Management Ltd,394491,24333,Opss: National Capacity Organisational Cross Cutting-facilities Management Contract,TW11 0LW,VENDOR
"Department for Business, Energy and Industrial Strategy","Department for Business, Energy and Industrial Strategy",25/05/2021,Clearing Account - Cost - Assets Under Construction - Freehold Building,Market Frameworks - Office For Product Safety And Standards,Government Property Agency,394533,-36777.39,Opss: National Capacity Market Surveilance And Consumer-clearing Account - Cost - Assets Under Construction - Freehold Building,B2 5LS,VENDOR
"Department for Business, Energy and Industrial Strategy","Department for Business, Energy and Industrial Strategy",25/05/2021,Clearing Account - Cost - Assets Under Construction - Freehold Building,Market Frameworks - Office For Product Safety And Standards,Government Property Agency,394533,2964.55,Opss: National Capacity Market Surveilance And Consumer-clearing Account - Cost - Assets Under Construction - Freehold Building,B2 5LS,VENDOR
"Department for Business, Energy and Industrial Strategy","Department for Business, Energy and Industrial Strategy",25/05/2021,Clearing Account - Cost - Assets Under Construction - Freehold Building,Market Frameworks - Office For Product Safety And Standards,Government Property Agency,394533,38408.18,Opss: National Capacity Market Surveilance And Consumer-clearing Account - Cost - Assets Under Construction - Freehold Building,B2 5LS,VENDOR
"Department for Business, Energy and Industrial Strategy","Department for Business, Energy and Industrial Strategy",25/05/2021,Clearing Account - Cost - Assets Under Construction - Freehold Building,Market Frameworks - Office For Product Safety And Standards,Government Property Agency,394533,80910.26,Opss: National Capacity Market Surveilance And Consumer-clearing Account - Cost - Assets Under Construction - Freehold Building,B2 5LS,VENDOR
"Department for Business, Energy and Industrial Strategy","Department for Business, Energy and Industrial Strategy",24/05/2021,Stationery,Market Frameworks - Office For Product Safety And Standards,"Personal Expense, Name Withheld",394548,236.98,Opss: National Capacity Co-ordination-stationery,,EMPLOYEE
"Department for Business, Energy and Industrial Strategy","Department for Business, Energy and Industrial Strategy",24/05/2021,External Training,Market Frameworks - Office For Product Safety And Standards,Capita Business Services Ltd T/A Knowledgepool,394572,6149.63,Opss: National Capacity Enforcement-external Training,DL1 9HN,VENDOR
"Department for Business, Energy and Industrial Strategy","Department for Business, Energy and Industrial Strategy",25/05/2021,External Training,Market Frameworks - Office For Product Safety And Standards,Capita Business Services Ltd T/A Knowledgepool,394597,6149.63,Opss: National Capacity Enforcement-external Training,DL1 9HN,VENDOR
"Department for Business, Energy and Industrial Strategy","Department for Business, Energy and Industrial Strategy",25/05/2021,External Training,Market Frameworks - Office For Product Safety And Standards,Capita Business Services Ltd T/A Knowledgepool,394598,6149.63,Opss: National Capacity Enforcement-external Training,DL1 9HN,VENDOR
"Department for Business, Energy and Industrial Strategy","Department for Business, Energy and Industrial Strategy",26/05/2021,Clearing Account   - Cost - Information Technology,Market Frameworks - Office For Product Safety And Standards,Experis Ltd,394610,25200,Opss: Eu Markets Surveillance-clearing Account   - Cost - Information Technology,WA14 1JY,VENDOR
"Department for Business, Energy and Industrial Strategy","Department for Business, Energy and Industrial Strategy",25/05/2021,External Training,Market Frameworks - Office For Product Safety And Standards,Capita Business Services Ltd T/A Knowledgepool,394815,3689.78,Opss: National Capacity Enforcement-external Training,DL1 9HN,VENDOR
"Department for Business, Energy and Industrial Strategy","Department for Business, Energy and Industrial Strategy",25/05/2021,External Training,Market Frameworks - Office For Product Safety And Standards,Capita Business Services Ltd T/A Knowledgepool,394817,1844.89,Opss: National Capacity Enforcement-external Training,DL1 9HN,VENDOR
"Department for Business, Energy and Industrial Strategy","Department for Business, Energy and Industrial Strategy",25/05/2021,External Training,Market Frameworks - Office For Product Safety And Standards,Capita Business Services Ltd T/A Knowledgepool,394817,3689.78,Opss: National Capacity Enforcement-external Training,DL1 9HN,VENDOR
"Department for Business, Energy and Industrial Strategy","Department for Business, Energy and Industrial Strategy",27/05/2021,External Training,Market Frameworks - Office For Product Safety And Standards,Capita Business Services Ltd T/A Knowledgepool,394818,1844.89,Opss: National Capacity Enforcement-external Training,DL1 9HN,VENDOR
"Department for Business, Energy and Industrial Strategy","Department for Business, Energy and Industrial Strategy",27/05/2021,External Training,Market Frameworks - Office For Product Safety And Standards,Capita Business Services Ltd T/A Knowledgepool,394818,3689.78,Opss: National Capacity Enforcement-external Training,DL1 9HN,VENDOR
"Department for Business, Energy and Industrial Strategy","Department for Business, Energy and Industrial Strategy",25/05/2021,External Training,Market Frameworks - Office For Product Safety And Standards,Capita Business Services Ltd T/A Knowledgepool,394819,3689.78,Opss: National Capacity Enforcement-external Training,DL1 9HN,VENDOR
"Department for Business, Energy and Industrial Strategy","Department for Business, Energy and Industrial Strategy",25/05/2021,External Training,Market Frameworks - Office For Product Safety And Standards,Capita Business Services Ltd T/A Knowledgepool,394820,614.96,Opss: National Capacity Enforcement-external Training,DL1 9HN,VENDOR
"Department for Business, Energy and Industrial Strategy","Department for Business, Energy and Industrial Strategy",25/05/2021,External Training,Market Frameworks - Office For Product Safety And Standards,Capita Business Services Ltd T/A Knowledgepool,394822,1844.89,Opss: National Capacity Enforcement-external Training,DL1 9HN,VENDOR
"Department for Business, Energy and Industrial Strategy","Department for Business, Energy and Industrial Strategy",25/05/2021,External Training,Market Frameworks - Office For Product Safety And Standards,Capita Business Services Ltd T/A Knowledgepool,394822,3689.78,Opss: National Capacity Enforcement-external Training,DL1 9HN,VENDOR
"Department for Business, Energy and Industrial Strategy","Department for Business, Energy and Industrial Strategy",27/05/2021,External Training,Market Frameworks - Office For Product Safety And Standards,Capita Business Services Ltd T/A Knowledgepool,394827,614.96,Opss: National Capacity Enforcement-external Training,DL1 9HN,VENDOR
"Department for Business, Energy and Industrial Strategy","Department for Business, Energy and Industrial Strategy",28/05/2021,Consultancy Expenditure,Market Frameworks - Office For Product Safety And Standards,Lgc Ltd,394843,3699.23,Opss: National Capacity Testing-consultancy Expenditure,TW11 0LY,GRANT
"Department for Business, Energy and Industrial Strategy","Department for Business, Energy and Industrial Strategy",26/05/2021,Current Grants To Local Government,Market Frameworks - Office For Product Safety And Standards,Belfast City Council,394875,32634,Opss: Eu Markets Surveillance-current Grants To Local Government,BT2 8DJ,WGA ONLY
"Department for Business, Energy and Industrial Strategy","Department for Business, Energy and Industrial Strategy",26/05/2021,Current Grants To Local Government,Market Frameworks - Office For Product Safety And Standards,Thurrock Borough Council,394889,36566,Opss: National Capacity Enforcement-current Grants To Local Government,RM17 6LT,VENDOR
"Department for Business, Energy and Industrial Strategy","Department for Business, Energy and Industrial Strategy",26/05/2021,Current Grants To Local Government,Market Frameworks - Office For Product Safety And Standards,Armagh City Banbridge And Craigavon Borough Council,394891,28490,Opss: Eu Markets Surveillance-current Grants To Local Government,BT64 1AL,VENDOR
"Department for Business, Energy and Industrial Strategy","Department for Business, Energy and Industrial Strategy",26/05/2021,Additions - Cost  - Buildings,Market Frameworks - Office For Product Safety And Standards,Government Property Agency,394897,105778.33,Opss: National Capacity Market Surveilance And Consumer-additions - Cost  - Buildings,EC4M 7HP,VENDOR
"Department for Business, Energy and Industrial Strategy","Department for Business, Energy and Industrial Strategy",27/05/2021,Clearing Account - Cost - Leasehold Improvements,Market Frameworks - Office For Product Safety And Standards,Government Property Agency,395114,15757.63,Opss: National Capacity Market Surveilance And Consumer-clearing Account - Cost - Leasehold Improvements,EC4M 7HP,VENDOR
"Department for Business, Energy and Industrial Strategy","Department for Business, Energy and Industrial Strategy",27/05/2021,Storage And Distribution,Market Frameworks - Office For Product Safety And Standards,Big Yellow Self Storage Company Ltd,395115,461.94,Opss: Innovating For Growth-storage And Distribution,GU19 5AT,VENDOR
"Department for Business, Energy and Industrial Strategy","Department for Business, Energy and Industrial Strategy",27/05/2021,Clearing Account - Cost - Leasehold Improvements,Market Frameworks - Office For Product Safety And Standards,Government Property Agency,395117,94.1,Opss: National Capacity Market Surveilance And Consumer-clearing Account - Cost - Leasehold Improvements,EC4M 7HP,VENDOR
"Department for Business, Energy and Industrial Strategy","Department for Business, Energy and Industrial Strategy",27/05/2021,Additions - Cost  - Buildings,Market Frameworks - Office For Product Safety And Standards,Government Property Agency,395118,-20485.1,Opss: National Capacity Market Surveilance And Consumer-additions - Cost  - Buildings,EC4M 7HP,VENDOR
"Department for Business, Energy and Industrial Strategy","Department for Business, Energy and Industrial Strategy",27/05/2021,Additions - Cost  - Buildings,Market Frameworks - Office For Product Safety And Standards,Government Property Agency,395118,37556.02,Opss: National Capacity Market Surveilance And Consumer-additions - Cost  - Buildings,EC4M 7HP,VENDOR
"Department for Business, Energy and Industrial Strategy","Department for Business, Energy and Industrial Strategy",27/05/2021,Clearing Account - Cost - Leasehold Improvements,Market Frameworks - Office For Product Safety And Standards,Government Property Agency,395119,1882.2,Opss: National Capacity Market Surveilance And Consumer-clearing Account - Cost - Leasehold Improvements,EC4M 7HP,VENDOR
"Department for Business, Energy and Industrial Strategy","Department for Business, Energy and Industrial Strategy",27/05/2021,Clearing Account - Cost - Leasehold Improvements,Market Frameworks - Office For Product Safety And Standards,Government Property Agency,395120,787.88,Opss: National Capacity Market Surveilance And Consumer-clearing Account - Cost - Leasehold Improvements,EC4M 7HP,VENDOR
"Department for Business, Energy and Industrial Strategy","Department for Business, Energy and Industrial Strategy",27/05/2021,Clearing Account - Cost - Leasehold Improvements,Market Frameworks - Office For Product Safety And Standards,Government Property Agency,395122,31735.07,Opss: National Capacity Market Surveilance And Consumer-clearing Account - Cost - Leasehold Improvements,EC4M 7HP,VENDOR
"Department for Business, Energy and Industrial Strategy","Department for Business, Energy and Industrial Strategy",27/05/2021,Clearing Account - Cost - Leasehold Improvements,Market Frameworks - Office For Product Safety And Standards,Government Property Agency,395123,1586.75,Opss: National Capacity Market Surveilance And Consumer-clearing Account - Cost - Leasehold Improvements,EC4M 7HP,VENDOR
"Department for Business, Energy and Industrial Strategy","Department for Business, Energy and Industrial Strategy",27/05/2021,Clearing Account - Cost - Leasehold Improvements,Market Frameworks - Office For Product Safety And Standards,Government Property Agency,395124,2217.58,Opss: National Capacity Market Surveilance And Consumer-clearing Account - Cost - Leasehold Improvements,EC4M 7HP,VENDOR
"Department for Business, Energy and Industrial Strategy","Department for Business, Energy and Industrial Strategy",27/05/2021,Clearing Account - Cost - Leasehold Improvements,Market Frameworks - Office For Product Safety And Standards,Government Property Agency,395125,110.88,Opss: National Capacity Market Surveilance And Consumer-clearing Account - Cost - Leasehold Improvements,EC4M 7HP,VENDOR
"Department for Business, Energy and Industrial Strategy","Department for Business, Energy and Industrial Strategy",27/05/2021,Additions - Cost  - Buildings,Market Frameworks - Office For Product Safety And Standards,Government Property Agency,395126,66948.7,Opss: National Capacity Market Surveilance And Consumer-additions - Cost  - Buildings,EC4M 7HP,VENDOR
"Department for Business, Energy and Industrial Strategy","Department for Business, Energy and Industrial Strategy",27/05/2021,Clearing Account   - Cost - Computer Equipment,Market Frameworks - Office For Product Safety And Standards,Little Fish (Uk) Ltd,395139,4489.38,Opss - It Infrastructure For Labs In Teddington-clearing Account   - Cost - Computer Equipment,NG1 1LS,VENDOR
"Department for Business, Energy and Industrial Strategy","Department for Business, Energy and Industrial Strategy",28/05/2021,Clearing Account - Cost - Leasehold Improvements,Market Frameworks - Office For Product Safety And Standards,Government Property Agency,395174,62038.82,Opss: National Capacity Market Surveilance And Consumer-clearing Account - Cost - Leasehold Improvements,EC4M 7HP,VENDOR
"Department for Business, Energy and Industrial Strategy","Department for Business, Energy and Industrial Strategy",28/05/2021,Facilities Management Contract,Market Frameworks - Office For Product Safety And Standards,Npl Management Ltd,395227,127,Opss: National Capacity Organisational Cross Cutting-facilities Management Contract,TW11 0LW,VENDOR
"Department for Business, Energy and Industrial Strategy","Department for Business, Energy and Industrial Strategy",28/05/2021,Current Grants To Local Government,Market Frameworks - Office For Product Safety And Standards,Slough Borough Council,395231,3900,Opss: National Capacity Enforcement-current Grants To Local Government,SL1 2EJ,VENDOR
"Department for Business, Energy and Industrial Strategy","Department for Business, Energy and Industrial Strategy",28/05/2021,Current Grants To Local Government,Market Frameworks - Office For Product Safety And Standards,London Borough Of Hounslow,395234,25000,Opss: National Capacity Enforcement-current Grants To Local Government,TW3 3EB,VENDOR
"Department for Business, Energy and Industrial Strategy","Department for Business, Energy and Industrial Strategy",05/05/2021,Hire Of Agency Staff,Market Frameworks - Office For Product Safety And Standards,Alexander Mann Solutions Ltd,392004,727.72,Opss: Central/Core-hire Of Agency Staff,EC2N 3AQ,VENDOR
"Department for Business, Energy and Industrial Strategy","Department for Business, Energy and Industrial Strategy",06/05/2021,Publications,Market Frameworks - Office For Product Safety And Standards,The British Standards Institution (Bsi),392175,424,Opss: Central/Core-publications,MK1 9EL,VENDOR
"Department for Business, Energy and Industrial Strategy","Department for Business, Energy and Industrial Strategy",10/05/2021,Courier Services,Market Frameworks - Office For Product Safety And Standards,Wey Group International Ltd,392822,17.13,Opss: Central/Core-courier Services,KT14 7AX,VENDOR
"Department for Business, Energy and Industrial Strategy","Department for Business, Energy and Industrial Strategy",10/05/2021,Hire Of Agency Staff,Market Frameworks - Office For Product Safety And Standards,Alexander Mann Solutions Ltd,392943,727.72,Opss: Central/Core-hire Of Agency Staff,EC2N 3AQ,VENDOR
"Department for Business, Energy and Industrial Strategy","Department for Business, Energy and Industrial Strategy",12/05/2021,Advertising,Market Frameworks - Office For Product Safety And Standards,In-tuition Networks Ltd,393310,39.2,Opss: National Capacity Organisational Cross Cutting-advertising,EN2 6EY,VENDOR
"Department for Business, Energy and Industrial Strategy","Department for Business, Energy and Industrial Strategy",13/05/2021,Stationery,Market Frameworks - Office For Product Safety And Standards,"Personal Expense, Name Withheld",393402,12,Mf Devolved Admin-stationery,,EMPLOYEE
"Department for Business, Energy and Industrial Strategy","Department for Business, Energy and Industrial Strategy",14/05/2021,Rail Travel Uk,Market Frameworks - Office For Product Safety And Standards,"Personal Expense, Name Withheld",393573,137.8,Opss: Central/Core-rail Travel Uk,,EMPLOYEE
"Department for Business, Energy and Industrial Strategy","Department for Business, Energy and Industrial Strategy",19/05/2021,Hire Of Agency Staff,Market Frameworks - Office For Product Safety And Standards,Alexander Mann Solutions Ltd,394108,737.56,Opss: Central/Core-hire Of Agency Staff,EC2N 3AQ,VENDOR
"Department for Business, Energy and Industrial Strategy","Department for Business, Energy and Industrial Strategy",25/05/2021,Hire Of Agency Staff,Market Frameworks - Office For Product Safety And Standards,Alexander Mann Solutions Ltd,394617,1032.58,Opss: Central/Core-hire Of Agency Staff,EC2N 3AQ,VENDOR
"Department for Business, Energy and Industrial Strategy","Department for Business, Energy and Industrial Strategy",25/05/2021,Hire Of Agency Staff,Market Frameworks - Office For Product Safety And Standards,Alexander Mann Solutions Ltd,394807,-737.56,Opss: Central/Core-hire Of Agency Staff,EC2N 3AQ,VENDOR
"Department for Business, Energy and Industrial Strategy","Department for Business, Energy and Industrial Strategy",28/05/2021,Courier Services,Market Frameworks - Office For Product Safety And Standards,Wey Group International Ltd,395164,208.37,Opss: Central/Core-courier Services,KT14 7AX,VENDOR
"Department for Business, Energy and Industrial Strategy","Department for Business, Energy and Industrial Strategy",06/05/2021,Outsourced Programme Management,Energy Transformation And Clean Growth - Energy Efficiency And Local,Department For Work And Pensions (Dwp),392211,8839.25,Dwp Warm Home Discount Delivery-outsourced Programme Management,FY1 9JN,WGA ONLY
"Department for Business, Energy and Industrial Strategy","Department for Business, Energy and Industrial Strategy",10/05/2021,Outsourced Programme Management,Energy Transformation And Clean Growth - Energy Efficiency And Local,Fivium Ltd,392678,1650,Energy Technology List Research And Products Policy Support Servicese-outsourced Programme Management,WC2N 6AH,VENDOR
"Department for Business, Energy and Industrial Strategy","Department for Business, Energy and Industrial Strategy",10/05/2021,Outsourced Programme Management,Energy Transformation And Clean Growth - Energy Efficiency And Local,Gemserv Limited,392896,43680,Green Deal Oversight And Registration Body-outsourced Programme Management,EC3M 4AJ,VENDOR
"Department for Business, Energy and Industrial Strategy","Department for Business, Energy and Industrial Strategy",12/05/2021,Outsourced Programme Management,Energy Transformation And Clean Growth - Energy Efficiency And Local,Softwire Technology Ltd,393084,308.4,Energy Savings Advice Service-outsourced Programme Management,NW5 1TL,VENDOR
"Department for Business, Energy and Industrial Strategy","Department for Business, Energy and Industrial Strategy",12/05/2021,Outsourced Programme Management,Energy Transformation And Clean Growth - Energy Efficiency And Local,Softwire Technology Ltd,393106,12240,Energy Savings Advice Service-outsourced Programme Management,NW5 1TL,VENDOR
"Department for Business, Energy and Industrial Strategy","Department for Business, Energy and Industrial Strategy",19/05/2021,Outsourced Programme Management,Energy Transformation And Clean Growth - Energy Efficiency And Local,Sitel Uk Ltd,393266,43510.27,Energy Savings Advice Service-outsourced Programme Management,CV1 3BH,VENDOR
"Department for Business, Energy and Industrial Strategy","Department for Business, Energy and Industrial Strategy",13/05/2021,Capital Grants To Private Sector - Companies,Energy Transformation And Clean Growth - Energy Efficiency And Local,Icf Consulting Services Ltd,393488,270000,Industrial Heat Policy And Research-capital Grants To Private Sector - Companies,EC4R 1BE,VENDOR
"Department for Business, Energy and Industrial Strategy","Department for Business, Energy and Industrial Strategy",19/05/2021,Outsourced Programme Management,Energy Transformation And Clean Growth - Energy Efficiency And Local,The Retrofit Academy Cic,394156,100000,Dwp Warm Home Discount Delivery-outsourced Programme Management,ST17 4AL,VENDOR
"Department for Business, Energy and Industrial Strategy","Department for Business, Energy and Industrial Strategy",21/05/2021,Outsourced Programme Management,Energy Transformation And Clean Growth - Energy Efficiency And Local,Sitel Uk Ltd,394272,-42135.99,Energy Savings Advice Service-outsourced Programme Management,CV1 3BH,VENDOR
"Department for Business, Energy and Industrial Strategy","Department for Business, Energy and Industrial Strategy",21/05/2021,Outsourced Programme Management,Energy Transformation And Clean Growth - Energy Efficiency And Local,Sitel Uk Ltd,394272,24059.03,Energy Savings Advice Service-outsourced Programme Management,CV1 3BH,VENDOR
"Department for Business, Energy and Industrial Strategy","Department for Business, Energy and Industrial Strategy",21/05/2021,Outsourced Programme Management,Energy Transformation And Clean Growth - Energy Efficiency And Local,Sitel Uk Ltd,394272,60212.95,Energy Savings Advice Service-outsourced Programme Management,CV1 3BH,VENDOR
"Department for Business, Energy and Industrial Strategy","Department for Business, Energy and Industrial Strategy",20/05/2021,Advertising,Energy Transformation And Clean Growth - Energy Efficiency And Local,Omnicom Media Group Uk Ltd T/A Manning Gottlieb Omd,394353,27.04,Green Homes Grant Project-advertising,SE1 0SW,VENDOR
"Department for Business, Energy and Industrial Strategy","Department for Business, Energy and Industrial Strategy",20/05/2021,Advertising,Energy Transformation And Clean Growth - Energy Efficiency And Local,Omnicom Media Group Uk Ltd T/A Manning Gottlieb Omd,394353,27314.6,Green Homes Grant Project-advertising,SE1 0SW,VENDOR
"Department for Business, Energy and Industrial Strategy","Department for Business, Energy and Industrial Strategy",27/05/2021,Outsourced Programme Management,Energy Transformation And Clean Growth - Energy Efficiency And Local,Building Research Establishment Ltd (Bre),394458,17194.39,Green Deal - Products And Measures-outsourced Programme Management,WD25 9XX,VENDOR
"Department for Business, Energy and Industrial Strategy","Department for Business, Energy and Industrial Strategy",28/05/2021,Outsourced Programme Management,Energy Transformation And Clean Growth - Energy Efficiency And Local,Gemserv Limited,394828,42492,Green Deal Oversight And Registration Body-outsourced Programme Management,EC3M 4AJ,VENDOR
"Department for Business, Energy and Industrial Strategy","Department for Business, Energy and Industrial Strategy",28/05/2021,Capital Grants To Private Sector - Companies,Energy Transformation And Clean Growth - Energy Efficiency And Local,Icf Consulting Services Ltd,395162,29504.9,Industrial Heat Policy And Research-capital Grants To Private Sector - Companies,EC4R 1BE,VENDOR
"Department for Business, Energy and Industrial Strategy","Department for Business, Energy and Industrial Strategy",07/05/2021,Research And Development Expenditure,Energy Transformation And Clean Growth - Energy Efficiency And Local,Pricewaterhousecoopers Llp,391593,47470,Electricity Demand Reduction-research And Development Expenditure,WC2N 6RH,VENDOR
"Department for Business, Energy and Industrial Strategy","Department for Business, Energy and Industrial Strategy",10/05/2021,Business Management Advice,Energy Transformation And Clean Growth - Energy Efficiency And Local,Icf Consulting Services Ltd,392673,27607.6,Industrial Heat Policy And Research-business Management Advice,EC4R 1BE,VENDOR
"Department for Business, Energy and Industrial Strategy","Department for Business, Energy and Industrial Strategy",10/05/2021,Research And Development Expenditure,Energy Transformation And Clean Growth - Energy Efficiency And Local,Winning Moves Ltd,392675,15000,Electricity Demand Reduction-research And Development Expenditure,B1 2ND,GRANT
"Department for Business, Energy and Industrial Strategy","Department for Business, Energy and Industrial Strategy",10/05/2021,Current Grants To Private Sector - Npish,Energy Transformation And Clean Growth - Energy Efficiency And Local,Icf Consulting Services Ltd,392676,6067.5,Industrial Heat Policy And Research-current Grants To Private Sector - Npish,EC4R 1BE,VENDOR
"Department for Business, Energy and Industrial Strategy","Department for Business, Energy and Industrial Strategy",12/05/2021,Outsourced Programme Management,Energy Transformation And Clean Growth - Energy Efficiency And Local,Environment Agency,393251,17890,Cca And Eii Strategy-outsourced Programme Management,FY1 9JN,WGA ONLY
"Department for Business, Energy and Industrial Strategy","Department for Business, Energy and Industrial Strategy",12/05/2021,Outsourced Programme Management,Energy Transformation And Clean Growth - Energy Efficiency And Local,Environment Agency,393252,365946,Energy Savings Opportunity Scheme-outsourced Programme Management,FY1 9JN,WGA ONLY
"Department for Business, Energy and Industrial Strategy","Department for Business, Energy and Industrial Strategy",21/05/2021,Outsourced Programme Management,Energy Transformation And Clean Growth - Energy Efficiency And Local,Ricardo-aea Ltd,393865,-74424.49,Chp Quality Assurance Programme-outsourced Programme Management,OX11 0QR,VENDOR
"Department for Business, Energy and Industrial Strategy","Department for Business, Energy and Industrial Strategy",21/05/2021,Outsourced Programme Management,Energy Transformation And Clean Growth - Energy Efficiency And Local,Ricardo-aea Ltd,393865,76980.79,Chp Quality Assurance Programme-outsourced Programme Management,OX11 0QR,VENDOR
"Department for Business, Energy and Industrial Strategy","Department for Business, Energy and Industrial Strategy",21/05/2021,Outsourced Programme Management,Energy Transformation And Clean Growth - Energy Efficiency And Local,Ricardo-aea Ltd,393865,86753.09,Chp Quality Assurance Programme-outsourced Programme Management,OX11 0QR,VENDOR
"Department for Business, Energy and Industrial Strategy","Department for Business, Energy and Industrial Strategy",20/05/2021,Current Grants To Private Sector - Npish,Energy Transformation And Clean Growth - Energy Efficiency And Local,Icf Consulting Services Ltd,394235,32111.53,Industrial Heat Policy And Research-current Grants To Private Sector - Npish,EC4R 1BE,VENDOR
"Department for Business, Energy and Industrial Strategy","Department for Business, Energy and Industrial Strategy",25/05/2021,Current Grants To Private Sector - Npish,Energy Transformation And Clean Growth - Energy Efficiency And Local,Icf Consulting Services Ltd,394810,50000,Industrial Heat Policy And Research-current Grants To Private Sector - Npish,EC4R 1BE,VENDOR
"Department for Business, Energy and Industrial Strategy","Department for Business, Energy and Industrial Strategy",28/05/2021,Current Grants To Private Sector - Npish,Energy Transformation And Clean Growth - Energy Efficiency And Local,Icf Consulting Services Ltd,395163,12756.89,Industrial Heat Policy And Research-current Grants To Private Sector - Npish,EC4R 1BE,VENDOR
"Department for Business, Energy and Industrial Strategy","Department for Business, Energy and Industrial Strategy",28/05/2021,Current Grants To Private Sector - Npish,Energy Transformation And Clean Growth - Energy Efficiency And Local,Icf Consulting Services Ltd,395165,16752.76,Industrial Heat Policy And Research-current Grants To Private Sector - Npish,EC4R 1BE,VENDOR
"Department for Business, Energy and Industrial Strategy","Department for Business, Energy and Industrial Strategy",24/05/2021,Administration Of Grants And Awards,Energy Transformation And Clean Growth - Energy Efficiency And Local,Office Of Gas And Electricity Markets (Ofgem),394568,1838773,Ofgem Overheads-administration Of Grants And Awards,SW1P 3GE,GRANT
"Department for Business, Energy and Industrial Strategy","Department for Business, Energy and Industrial Strategy",07/05/2021,Stationery,Energy Transformation And Clean Growth - Clean Growth,"Personal Expense, Name Withheld",392489,182,Mf Devolved Admin-stationery,,EMPLOYEE
"Department for Business, Energy and Industrial Strategy","Department for Business, Energy and Industrial Strategy",10/05/2021,Economic Consultancy & Research,Energy Transformation And Clean Growth - Clean Growth,Behavioural Insights Ltd,392693,6150,Energy Satistics Research And Analysis-economic Consultancy & Research,SW1H 9NP,GRANT
"Department for Business, Energy and Industrial Strategy","Department for Business, Energy and Industrial Strategy",26/05/2021,Economic Consultancy & Research,Energy Transformation And Clean Growth - Clean Growth,University Of Strathclyde,394532,9999,Energy Satistics Research And Analysis-economic Consultancy & Research,G1 1XQ,VENDOR
"Department for Business, Energy and Industrial Strategy","Department for Business, Energy and Industrial Strategy",27/05/2021,Economic Consultancy & Research,Energy Transformation And Clean Growth - Clean Growth,Sec Newgate Uk Ltd,395121,17334,Energy Satistics Research And Analysis-economic Consultancy & Research,EC2V 5DE,VENDOR
"Department for Business, Energy and Industrial Strategy","Department for Business, Energy and Industrial Strategy",04/05/2021,Exp - Miscellaneous Expenditure - Iexpenses,Energy Transformation And Clean Growth - Industrial Energy,"Personal Expense, Name Withheld",391864,62.75,Mf Devolved Admin-exp - Miscellaneous Expenditure - Iexpenses,,EMPLOYEE
"Department for Business, Energy and Industrial Strategy","Department for Business, Energy and Industrial Strategy",05/05/2021,Outsourced Programme Management,Energy Transformation And Clean Growth - Industrial Energy,Alexander Mann Solutions Ltd,391987,256.67,Industrial Heat Policy And Research-outsourced Programme Management,EC2N 3AQ,VENDOR
"Department for Business, Energy and Industrial Strategy","Department for Business, Energy and Industrial Strategy",05/05/2021,Outsourced Programme Management,Energy Transformation And Clean Growth - Industrial Energy,Alexander Mann Solutions Ltd,391987,2106.07,Industrial Heat Policy And Research-outsourced Programme Management,EC2N 3AQ,VENDOR
"Department for Business, Energy and Industrial Strategy","Department for Business, Energy and Industrial Strategy",05/05/2021,Outsourced Programme Management,Energy Transformation And Clean Growth - Industrial Energy,Alexander Mann Solutions Ltd,391988,2205.18,Industrial Heat Policy And Research-outsourced Programme Management,EC2N 3AQ,VENDOR
"Department for Business, Energy and Industrial Strategy","Department for Business, Energy and Industrial Strategy",06/05/2021,Hire Of Agency Staff,Energy Transformation And Clean Growth - Industrial Energy,Alexander Mann Solutions Ltd,391994,3622.86,Mf Devolved Admin-hire Of Agency Staff,EC2N 3AQ,VENDOR
"Department for Business, Energy and Industrial Strategy","Department for Business, Energy and Industrial Strategy",05/05/2021,Hire Of Agency Staff,Energy Transformation And Clean Growth - Industrial Energy,Alexander Mann Solutions Ltd,391999,2835.24,Uk Role In Eu Ets-hire Of Agency Staff,EC2N 3AQ,VENDOR
"Department for Business, Energy and Industrial Strategy","Department for Business, Energy and Industrial Strategy",12/05/2021,Outsourced Programme Management,Energy Transformation And Clean Growth - Industrial Energy,Alexander Mann Solutions Ltd,392931,2551.72,Industrial Heat Policy And Research-outsourced Programme Management,EC2N 3AQ,VENDOR
"Department for Business, Energy and Industrial Strategy","Department for Business, Energy and Industrial Strategy",12/05/2021,Outsourced Programme Management,Energy Transformation And Clean Growth - Industrial Energy,Alexander Mann Solutions Ltd,392932,2362.74,Industrial Heat Policy And Research-outsourced Programme Management,EC2N 3AQ,VENDOR
"Department for Business, Energy and Industrial Strategy","Department for Business, Energy and Industrial Strategy",12/05/2021,Outsourced Programme Management,Energy Transformation And Clean Growth - Industrial Energy,Alexander Mann Solutions Ltd,392933,882.11,Industrial Heat Policy And Research-outsourced Programme Management,EC2N 3AQ,VENDOR
"Department for Business, Energy and Industrial Strategy","Department for Business, Energy and Industrial Strategy",12/05/2021,Outsourced Programme Management,Energy Transformation And Clean Growth - Industrial Energy,Alexander Mann Solutions Ltd,392933,1323.07,Industrial Heat Policy And Research-outsourced Programme Management,EC2N 3AQ,VENDOR
"Department for Business, Energy and Industrial Strategy","Department for Business, Energy and Industrial Strategy",12/05/2021,Hire Of Agency Staff,Energy Transformation And Clean Growth - Industrial Energy,Alexander Mann Solutions Ltd,392934,3622.86,Mf Devolved Admin-hire Of Agency Staff,EC2N 3AQ,VENDOR
"Department for Business, Energy and Industrial Strategy","Department for Business, Energy and Industrial Strategy",12/05/2021,Hire Of Agency Staff,Energy Transformation And Clean Growth - Industrial Energy,Alexander Mann Solutions Ltd,392936,2835.24,Uk Role In Eu Ets-hire Of Agency Staff,EC2N 3AQ,VENDOR
"Department for Business, Energy and Industrial Strategy","Department for Business, Energy and Industrial Strategy",11/05/2021,Outsourced Programme Management,Energy Transformation And Clean Growth - Industrial Energy,Low Carbon Contracts Company Limited,393083,8340.19,Industrial Heat Policy And Research-outsourced Programme Management,EC4Y 8JX,VENDOR
"Department for Business, Energy and Industrial Strategy","Department for Business, Energy and Industrial Strategy",11/05/2021,Outsourced Programme Management,Energy Transformation And Clean Growth - Industrial Energy,Fdm Group Ltd,393188,7000,Uk Role In Eu Ets-outsourced Programme Management,SE1 2QG,VENDOR
"Department for Business, Energy and Industrial Strategy","Department for Business, Energy and Industrial Strategy",11/05/2021,Outsourced Programme Management,Energy Transformation And Clean Growth - Industrial Energy,Fdm Group Ltd,393189,9000,Uk Role In Eu Ets-outsourced Programme Management,SE1 2QG,VENDOR
"Department for Business, Energy and Industrial Strategy","Department for Business, Energy and Industrial Strategy",12/05/2021,Outsourced Programme Management,Energy Transformation And Clean Growth - Industrial Energy,Fdm Group Ltd,393201,4050,Uk Role In Eu Ets-outsourced Programme Management,SE1 2QG,VENDOR
"Department for Business, Energy and Industrial Strategy","Department for Business, Energy and Industrial Strategy",12/05/2021,Outsourced Programme Management,Energy Transformation And Clean Growth - Industrial Energy,Fdm Group Ltd,393204,5600,Uk Role In Eu Ets-outsourced Programme Management,SE1 2QG,VENDOR
"Department for Business, Energy and Industrial Strategy","Department for Business, Energy and Industrial Strategy",12/05/2021,Outsourced Programme Management,Energy Transformation And Clean Growth - Industrial Energy,Environment Agency,393328,75867,Eu Exit Core Beis Staff: Energy & Climate Workstream Adm-outsourced Programme Management,FY1 9JN,WGA ONLY
"Department for Business, Energy and Industrial Strategy","Department for Business, Energy and Industrial Strategy",12/05/2021,Consultancy Expenditure,Energy Transformation And Clean Growth - Industrial Energy,Environment Agency,393329,73695,Eu Exit Core Beis Staff: Energy & Climate Workstream Adm-consultancy Expenditure,FY1 9JN,WGA ONLY
"Department for Business, Energy and Industrial Strategy","Department for Business, Energy and Industrial Strategy",12/05/2021,Outsourced Programme Management,Energy Transformation And Clean Growth - Industrial Energy,Environment Agency,393330,317860,Eu Exit Core Beis Staff: Energy & Climate Workstream Adm-outsourced Programme Management,FY1 9JN,WGA ONLY
"Department for Business, Energy and Industrial Strategy","Department for Business, Energy and Industrial Strategy",12/05/2021,Other Professional Services,Energy Transformation And Clean Growth - Industrial Energy,Meisterworks Ltd,393331,580,Industrial Heat Policy And Research-other Professional Services,SW1Y 4LB,VENDOR
"Department for Business, Energy and Industrial Strategy","Department for Business, Energy and Industrial Strategy",14/05/2021,Training And Development Expenditure,Energy Transformation And Clean Growth - Industrial Energy,City And Financial Global Ltd,393484,1180,Mf Non Devolved Admin-training And Development Expenditure,EC2V 8AU,VENDOR
"Department for Business, Energy and Industrial Strategy","Department for Business, Energy and Industrial Strategy",17/05/2021,Outsourced Programme Management,Energy Transformation And Clean Growth - Industrial Energy,Ove Arup And Partners Ltd,393770,6743.78,Industrial Heat Policy And Research-outsourced Programme Management,NE1 3PL,VENDOR
"Department for Business, Energy and Industrial Strategy","Department for Business, Energy and Industrial Strategy",19/05/2021,Outsourced Programme Management,Energy Transformation And Clean Growth - Industrial Energy,Alexander Mann Solutions Ltd,394094,5103.43,Industrial Heat Policy And Research-outsourced Programme Management,EC2N 3AQ,VENDOR
"Department for Business, Energy and Industrial Strategy","Department for Business, Energy and Industrial Strategy",21/05/2021,Hire Of Agency Staff,Energy Transformation And Clean Growth - Industrial Energy,Alexander Mann Solutions Ltd,394096,2898.29,Mf Devolved Admin-hire Of Agency Staff,EC2N 3AQ,VENDOR
"Department for Business, Energy and Industrial Strategy","Department for Business, Energy and Industrial Strategy",19/05/2021,Hire Of Agency Staff,Energy Transformation And Clean Growth - Industrial Energy,Alexander Mann Solutions Ltd,394097,2268.19,Uk Role In Eu Ets-hire Of Agency Staff,EC2N 3AQ,VENDOR
"Department for Business, Energy and Industrial Strategy","Department for Business, Energy and Industrial Strategy",19/05/2021,Outsourced Programme Management,Energy Transformation And Clean Growth - Industrial Energy,Alexander Mann Solutions Ltd,394100,1890.19,Industrial Heat Policy And Research-outsourced Programme Management,EC2N 3AQ,VENDOR
"Department for Business, Energy and Industrial Strategy","Department for Business, Energy and Industrial Strategy",19/05/2021,Outsourced Programme Management,Energy Transformation And Clean Growth - Industrial Energy,Alexander Mann Solutions Ltd,394102,1764.14,Industrial Heat Policy And Research-outsourced Programme Management,EC2N 3AQ,VENDOR
"Department for Business, Energy and Industrial Strategy","Department for Business, Energy and Industrial Strategy",27/05/2021,Outsourced Programme Management,Energy Transformation And Clean Growth - Industrial Energy,Fdm Group Ltd,394474,1600,Uk Role In Eu Ets-outsourced Programme Management,SE1 2QG,VENDOR
"Department for Business, Energy and Industrial Strategy","Department for Business, Energy and Industrial Strategy",27/05/2021,Outsourced Programme Management,Energy Transformation And Clean Growth - Industrial Energy,Fdm Group Ltd,394476,16000,Uk Role In Eu Ets-outsourced Programme Management,SE1 2QG,VENDOR
"Department for Business, Energy and Industrial Strategy","Department for Business, Energy and Industrial Strategy",25/05/2021,Outsourced Programme Management,Energy Transformation And Clean Growth - Industrial Energy,Alexander Mann Solutions Ltd,394614,2362.74,Industrial Heat Policy And Research-outsourced Programme Management,EC2N 3AQ,VENDOR
"Department for Business, Energy and Industrial Strategy","Department for Business, Energy and Industrial Strategy",28/05/2021,Outsourced Programme Management,Energy Transformation And Clean Growth - Industrial Energy,Alexander Mann Solutions Ltd,394628,-1837.65,Industrial Heat Policy And Research-outsourced Programme Management,EC2N 3AQ,VENDOR
"Department for Business, Energy and Industrial Strategy","Department for Business, Energy and Industrial Strategy",28/05/2021,Outsourced Programme Management,Energy Transformation And Clean Growth - Industrial Energy,Alexander Mann Solutions Ltd,394628,4042.83,Industrial Heat Policy And Research-outsourced Programme Management,EC2N 3AQ,VENDOR
"Department for Business, Energy and Industrial Strategy","Department for Business, Energy and Industrial Strategy",27/05/2021,Outsourced Programme Management,Energy Transformation And Clean Growth - Industrial Energy,Alexander Mann Solutions Ltd,394634,-3019.05,Industrial Heat Policy And Research-outsourced Programme Management,EC2N 3AQ,VENDOR
"Department for Business, Energy and Industrial Strategy","Department for Business, Energy and Industrial Strategy",27/05/2021,Hire Of Agency Staff,Energy Transformation And Clean Growth - Industrial Energy,Alexander Mann Solutions Ltd,394634,362.28,Mf Devolved Admin-hire Of Agency Staff,EC2N 3AQ,VENDOR
"Department for Business, Energy and Industrial Strategy","Department for Business, Energy and Industrial Strategy",27/05/2021,Outsourced Programme Management,Energy Transformation And Clean Growth - Industrial Energy,Alexander Mann Solutions Ltd,394634,6279.63,Industrial Heat Policy And Research-outsourced Programme Management,EC2N 3AQ,VENDOR
"Department for Business, Energy and Industrial Strategy","Department for Business, Energy and Industrial Strategy",27/05/2021,Hire Of Agency Staff,Energy Transformation And Clean Growth - Industrial Energy,Alexander Mann Solutions Ltd,394636,2835.24,Uk Role In Eu Ets-hire Of Agency Staff,EC2N 3AQ,VENDOR
"Department for Business, Energy and Industrial Strategy","Department for Business, Energy and Industrial Strategy",27/05/2021,Outsourced Programme Management,Energy Transformation And Clean Growth - Industrial Energy,Fdm Group Ltd,394831,4500,Uk Role In Eu Ets-outsourced Programme Management,SE1 2QG,VENDOR
"Department for Business, Energy and Industrial Strategy","Department for Business, Energy and Industrial Strategy",28/05/2021,Exp - Miscellaneous Expenditure - Iexpenses,Energy Transformation And Clean Growth - Industrial Energy,"Personal Expense, Name Withheld",395185,22.99,Mf Devolved Admin-exp - Miscellaneous Expenditure - Iexpenses,,EMPLOYEE
"Department for Business, Energy and Industrial Strategy","Department for Business, Energy and Industrial Strategy",04/05/2021,Other Receivables - Unclassified,Energy Transformation And Clean Growth - Clean Heat,Office Of Gas And Electricity Markets (Ofgem),391563,10247368,Rhi Domestic Ame Payments-other Receivables - Unclassified,SW1P 3GE,GRANT
"Department for Business, Energy and Industrial Strategy","Department for Business, Energy and Industrial Strategy",04/05/2021,Other Receivables - Unclassified,Energy Transformation And Clean Growth - Clean Heat,Office Of Gas And Electricity Markets (Ofgem),391790,72396551,Rhi Non-domestic Ame Payments-other Receivables - Unclassified,SW1P 3GE,GRANT
"Department for Business, Energy and Industrial Strategy","Department for Business, Energy and Industrial Strategy",12/05/2021,Stationery,Energy Transformation And Clean Growth - Clean Heat,"Personal Expense, Name Withheld",393271,115,Mf Devolved Admin-stationery,,EMPLOYEE
"Department for Business, Energy and Industrial Strategy","Department for Business, Energy and Industrial Strategy",12/05/2021,Stationery,Energy Transformation And Clean Growth - Clean Heat,"Personal Expense, Name Withheld",393288,115,Mf Devolved Admin-stationery,,EMPLOYEE
"Department for Business, Energy and Industrial Strategy","Department for Business, Energy and Industrial Strategy",14/05/2021,Other Technical Professional Services,Energy Transformation And Clean Growth - Smart Metering Implementation Programme,Actica Consulting Ltd,389080,119700,Smart Energy Holistic Cyber Risk Assessment-other Technical Professional Services,GU2 7RF,VENDOR
"Department for Business, Energy and Industrial Strategy","Department for Business, Energy and Industrial Strategy",04/05/2021,Other Technical Professional Services,Energy Transformation And Clean Growth - Smart Metering Implementation Programme,Methods Business And Digital Technology Ltd,391793,4179,Smart Energy Holistic Cyber Risk Assessment-other Technical Professional Services,EC1A 4EN,VENDOR
"Department for Business, Energy and Industrial Strategy","Department for Business, Energy and Industrial Strategy",04/05/2021,Other Technical Professional Services,Energy Transformation And Clean Growth - Smart Metering Implementation Programme,Methods Business And Digital Technology Ltd,391793,18507,Smart Energy Holistic Cyber Risk Assessment-other Technical Professional Services,EC1A 4EN,VENDOR
"Department for Business, Energy and Industrial Strategy","Department for Business, Energy and Industrial Strategy",04/05/2021,Other Technical Professional Services,Energy Transformation And Clean Growth - Smart Metering Implementation Programme,Methods Business And Digital Technology Ltd,391794,497.5,Smart Energy Holistic Cyber Risk Assessment-other Technical Professional Services,EC1A 4EN,VENDOR
"Department for Business, Energy and Industrial Strategy","Department for Business, Energy and Industrial Strategy",04/05/2021,Other Technical Professional Services,Energy Transformation And Clean Growth - Smart Metering Implementation Programme,Methods Business And Digital Technology Ltd,391794,10149,Smart Energy Holistic Cyber Risk Assessment-other Technical Professional Services,EC1A 4EN,VENDOR
"Department for Business, Energy and Industrial Strategy","Department for Business, Energy and Industrial Strategy",13/05/2021,Other Technical Professional Services,Energy Transformation And Clean Growth - Smart Metering Implementation Programme,Pa Consulting Services Ltd,393372,19470,Smart Energy Holistic Cyber Risk Assessment-other Technical Professional Services,SG8 6DP,VENDOR
"Department for Business, Energy and Industrial Strategy","Department for Business, Energy and Industrial Strategy",14/05/2021,Other Technical Professional Services,Energy Transformation And Clean Growth - Smart Metering Implementation Programme,Methods Business And Digital Technology Ltd,393653,9552,Smart Energy Holistic Cyber Risk Assessment-other Technical Professional Services,EC1A 4EN,VENDOR
"Department for Business, Energy and Industrial Strategy","Department for Business, Energy and Industrial Strategy",14/05/2021,Other Technical Professional Services,Energy Transformation And Clean Growth - Smart Metering Implementation Programme,Methods Business And Digital Technology Ltd,393654,23328,Smart Energy Holistic Cyber Risk Assessment-other Technical Professional Services,EC1A 4EN,VENDOR
"Department for Business, Energy and Industrial Strategy","Department for Business, Energy and Industrial Strategy",14/05/2021,Other Technical Professional Services,Energy Transformation And Clean Growth - Smart Metering Implementation Programme,Methods Business And Digital Technology Ltd,393656,22686,Smart Energy Holistic Cyber Risk Assessment-other Technical Professional Services,EC1A 4EN,VENDOR
"Department for Business, Energy and Industrial Strategy","Department for Business, Energy and Industrial Strategy",17/05/2021,Other Technical Professional Services,Energy Transformation And Clean Growth - Smart Metering Implementation Programme,Ase Consulting Ltd,393767,22950,Smart Energy Holistic Cyber Risk Assessment-other Technical Professional Services,EC3M 4AJ,VENDOR
"Department for Business, Energy and Industrial Strategy","Department for Business, Energy and Industrial Strategy",20/05/2021,Other Technical Professional Services,Energy Transformation And Clean Growth - Smart Metering Implementation Programme,Ase Consulting Ltd,393768,-25500,Smart Energy Holistic Cyber Risk Assessment-other Technical Professional Services,EC3M 4AJ,VENDOR
"Department for Business, Energy and Industrial Strategy","Department for Business, Energy and Industrial Strategy",20/05/2021,Other Technical Professional Services,Energy Transformation And Clean Growth - Smart Metering Implementation Programme,Ase Consulting Ltd,393768,12240,Smart Energy Holistic Cyber Risk Assessment-other Technical Professional Services,EC3M 4AJ,VENDOR
"Department for Business, Energy and Industrial Strategy","Department for Business, Energy and Industrial Strategy",20/05/2021,Other Technical Professional Services,Energy Transformation And Clean Growth - Smart Metering Implementation Programme,Ase Consulting Ltd,393768,43860,Smart Energy Holistic Cyber Risk Assessment-other Technical Professional Services,EC3M 4AJ,VENDOR
"Department for Business, Energy and Industrial Strategy","Department for Business, Energy and Industrial Strategy",18/05/2021,Other Technical Professional Services,Energy Transformation And Clean Growth - Smart Metering Implementation Programme,Yellow Wood Energy Consulting Ltd,393881,19188,Smart Energy Holistic Cyber Risk Assessment-other Technical Professional Services,CV8 1BT,VENDOR
"Department for Business, Energy and Industrial Strategy","Department for Business, Energy and Industrial Strategy",18/05/2021,Other Technical Professional Services,Energy Transformation And Clean Growth - Smart Metering Implementation Programme,Yellow Wood Energy Consulting Ltd,393881,19557,Smart Energy Holistic Cyber Risk Assessment-other Technical Professional Services,CV8 1BT,VENDOR
"Department for Business, Energy and Industrial Strategy","Department for Business, Energy and Industrial Strategy",27/05/2021,Other Technical Professional Services,Energy Transformation And Clean Growth - Smart Metering Implementation Programme,Pa Consulting Services Ltd,395007,38372.4,Smart Energy Holistic Cyber Risk Assessment-other Technical Professional Services,SG8 6DP,VENDOR
"Department for Business, Energy and Industrial Strategy","Department for Business, Energy and Industrial Strategy",19/05/2021,Research And Development Expenditure,Energy Transformation And Clean Growth - Smart Metering Implementation Programme,Aecom Ltd,394049,4550,Smart Energy Holistic Cyber Risk Assessment-research And Development Expenditure,AL1 3ER,VENDOR
"Department for Business, Energy and Industrial Strategy","Department for Business, Energy and Industrial Strategy",26/05/2021,Stationery,Energy Transformation And Clean Growth - Smart Metering Implementation Programme,"Personal Expense, Name Withheld",394928,74.4,Smart Energy Holistic Cyber Risk Assessment-stationery,,EMPLOYEE
"Department for Business, Energy and Industrial Strategy","Department for Business, Energy and Industrial Strategy",26/05/2021,Stationery,Energy Transformation And Clean Growth - Smart Metering Implementation Programme,"Personal Expense, Name Withheld",394940,184.99,Smart Energy Holistic Cyber Risk Assessment-stationery,,EMPLOYEE
"Department for Business, Energy and Industrial Strategy","Department for Business, Energy and Industrial Strategy",19/05/2021,R & D Outsourced Other,Energy Transformation And Clean Growth - Science And Innovation,Office For Nuclear Regulation,387290,195481.59,Net Zero Innovation - Nuclear-r & D Outsourced Other,FY1 9JN,VENDOR
"Department for Business, Energy and Industrial Strategy","Department for Business, Energy and Industrial Strategy",19/05/2021,R & D Outsourced Other,Energy Transformation And Clean Growth - Science And Innovation,Office For Nuclear Regulation,387293,4968.18,Net Zero Innovation - Nuclear-r & D Outsourced Other,FY1 9JN,VENDOR
"Department for Business, Energy and Industrial Strategy","Department for Business, Energy and Industrial Strategy",05/05/2021,Capital Grants To Private Sector - Companies,Energy Transformation And Clean Growth - Science And Innovation,Laser Additive Solutions Ltd,391942,142729,Net Zero Innovation - Nuclear-capital Grants To Private Sector - Companies,DN11 0PS,GRANT
"Department for Business, Energy and Industrial Strategy","Department for Business, Energy and Industrial Strategy",05/05/2021,Capital Grants To Private Sector - Companies,Energy Transformation And Clean Growth - Science And Innovation,Westinghouse Electric Company Uk Ltd,391944,23367,Net Zero Innovation - Nuclear-capital Grants To Private Sector - Companies,PR4 0XJ,VENDOR
"Department for Business, Energy and Industrial Strategy","Department for Business, Energy and Industrial Strategy",05/05/2021,Capital Grants To Private Sector - Companies,Energy Transformation And Clean Growth - Science And Innovation,U-battery Developments Ltd,391967,162762,Net Zero Innovation - Nuclear-capital Grants To Private Sector - Companies,SL2 4JS,VENDOR
"Department for Business, Energy and Industrial Strategy","Department for Business, Energy and Industrial Strategy",06/05/2021,Capital Grants To Private Sector - Companies,Energy Transformation And Clean Growth - Science And Innovation,Rolls-royce Submarines Ltd,392279,79037.25,Net Zero Innovation - Nuclear-capital Grants To Private Sector - Companies,DE24 8BJ,VENDOR
"Department for Business, Energy and Industrial Strategy","Department for Business, Energy and Industrial Strategy",06/05/2021,Capital Grants To Private Sector - Companies,Energy Transformation And Clean Growth - Science And Innovation,Rolls-royce Submarines Ltd,392280,60115.65,Net Zero Innovation - Nuclear-capital Grants To Private Sector - Companies,DE24 8BJ,VENDOR
"Department for Business, Energy and Industrial Strategy","Department for Business, Energy and Industrial Strategy",11/05/2021,Capital Grants To Private Sector - Companies,Energy Transformation And Clean Growth - Science And Innovation,Cavendish Nuclear Ltd,393101,101080.41,Net Zero Innovation - Nuclear-capital Grants To Private Sector - Companies,LE3 1UF,VENDOR
"Department for Business, Energy and Industrial Strategy","Department for Business, Energy and Industrial Strategy",11/05/2021,Capital Grants To Private Sector - Companies,Energy Transformation And Clean Growth - Science And Innovation,Cavendish Nuclear Ltd,393119,101080.41,Net Zero Innovation - Nuclear-capital Grants To Private Sector - Companies,LE3 1UF,VENDOR
"Department for Business, Energy and Industrial Strategy","Department for Business, Energy and Industrial Strategy",11/05/2021,Capital Grants To Private Sector - Companies,Energy Transformation And Clean Growth - Science And Innovation,Cavendish Nuclear Ltd,393121,134773.87,Net Zero Innovation - Nuclear-capital Grants To Private Sector - Companies,LE3 1UF,VENDOR
"Department for Business, Energy and Industrial Strategy","Department for Business, Energy and Industrial Strategy",12/05/2021,Capital Grants To Private Sector - Companies,Energy Transformation And Clean Growth - Science And Innovation,Nuclear Energy Components Ltd,393228,76651.85,Net Zero Innovation - Nuclear-capital Grants To Private Sector - Companies,S33 9NT,GRANT
"Department for Business, Energy and Industrial Strategy","Department for Business, Energy and Industrial Strategy",12/05/2021,Capital Grants To Private Sector - Companies,Energy Transformation And Clean Growth - Science And Innovation,Create Technologies Ltd,393237,82023.48,Net Zero Innovation - Nuclear-capital Grants To Private Sector - Companies,CA13 0HT,GRANT
"Department for Business, Energy and Industrial Strategy","Department for Business, Energy and Industrial Strategy",18/05/2021,Capital Grants To Private Sector - Companies,Energy Transformation And Clean Growth - Science And Innovation,Ukaea,393877,75968.67,Net Zero Innovation - Nuclear-capital Grants To Private Sector - Companies,OX14 3DB,WGA ONLY
"Department for Business, Energy and Industrial Strategy","Department for Business, Energy and Industrial Strategy",18/05/2021,Capital Grants To Private Sector - Companies,Energy Transformation And Clean Growth - Science And Innovation,Laser Additive Solutions Ltd,393879,13226,Net Zero Innovation - Nuclear-capital Grants To Private Sector - Companies,DN11 0PS,GRANT
"Department for Business, Energy and Industrial Strategy","Department for Business, Energy and Industrial Strategy",25/05/2021,Capital Grants To Private Sector - Companies,Energy Transformation And Clean Growth - Science And Innovation,U-battery Developments Ltd,394836,221687,Net Zero Innovation - Nuclear-capital Grants To Private Sector - Companies,SL2 4JS,VENDOR
"Department for Business, Energy and Industrial Strategy","Department for Business, Energy and Industrial Strategy",25/05/2021,Capital Grants To Private Sector - Companies,Energy Transformation And Clean Growth - Science And Innovation,Cammell Laird Shiprepairers & Shipbuilders Ltd,394838,110000,Net Zero Innovation - Nuclear-capital Grants To Private Sector - Companies,CH41 9BP,VENDOR
"Department for Business, Energy and Industrial Strategy","Department for Business, Energy and Industrial Strategy",26/05/2021,Capital Grants To Private Sector - Companies,Energy Transformation And Clean Growth - Science And Innovation,Edf Energy Nuclear Generation Ltd,394876,181997,Net Zero Innovation - Nuclear-capital Grants To Private Sector - Companies,GL4 3RS,VENDOR
"Department for Business, Energy and Industrial Strategy","Department for Business, Energy and Industrial Strategy",27/05/2021,R & D Outsourced Other,Energy Transformation And Clean Growth - Science And Innovation,Office For Nuclear Regulation,395034,42124.95,Net Zero Innovation - Nuclear-r & D Outsourced Other,L20 7HS,VENDOR
"Department for Business, Energy and Industrial Strategy","Department for Business, Energy and Industrial Strategy",27/05/2021,Capital Grants To Private Sector - Companies,Energy Transformation And Clean Growth - Science And Innovation,U-battery Developments Ltd,395040,396457.92,Net Zero Innovation - Nuclear-capital Grants To Private Sector - Companies,SL2 4JS,VENDOR
"Department for Business, Energy and Industrial Strategy","Department for Business, Energy and Industrial Strategy",05/05/2021,Stationery,Energy Transformation And Clean Growth - Clean Growth,"Personal Expense, Name Withheld",392021,12.99,Mf Devolved Admin-stationery,,EMPLOYEE
"Department for Business, Energy and Industrial Strategy","Department for Business, Energy and Industrial Strategy",06/05/2021,Stationery,Energy Transformation And Clean Growth - Clean Growth,"Personal Expense, Name Withheld",392273,9.99,Mf Devolved Admin-stationery,,EMPLOYEE
"Department for Business, Energy and Industrial Strategy","Department for Business, Energy and Industrial Strategy",10/05/2021,External Training,Energy Transformation And Clean Growth - Clean Growth,"Personal Expense, Name Withheld",392907,118.8,Mf Devolved Admin-external Training,,EMPLOYEE
"Department for Business, Energy and Industrial Strategy","Department for Business, Energy and Industrial Strategy",12/05/2021,Stationery,Energy Transformation And Clean Growth - Clean Growth,"Personal Expense, Name Withheld",393284,19.99,Mf Devolved Admin-stationery,,EMPLOYEE
"Department for Business, Energy and Industrial Strategy","Department for Business, Energy and Industrial Strategy",18/05/2021,Stationery,Energy Transformation And Clean Growth - Climate And Energy - Trade And Europe,"Personal Expense, Name Withheld",393904,230.9,Mf Devolved Admin-stationery,,EMPLOYEE
"Department for Business, Energy and Industrial Strategy","Department for Business, Energy and Industrial Strategy",07/05/2021,Shared Legal Services (Decc),Energy Transformation And Clean Growth - Magnox Enquiry,Dla Piper Scotland Llp,392334,4492.32,Mf Devolved Admin-shared Legal Services (Decc),EH1 2AA,VENDOR
"Department for Business, Energy and Industrial Strategy","Department for Business, Energy and Industrial Strategy",07/05/2021,Shared Legal Services (Decc),Energy Transformation And Clean Growth - Magnox Enquiry,Dla Piper Scotland Llp,392336,2900.5,Mf Devolved Admin-shared Legal Services (Decc),EH1 2AA,VENDOR
"Department for Business, Energy and Industrial Strategy","Department for Business, Energy and Industrial Strategy",12/05/2021,Shared Legal Services (Decc),Energy Transformation And Clean Growth - Magnox Enquiry,Government Legal Department,393311,6634.5,Mf Devolved Admin-shared Legal Services (Decc),SW1H 9JS,VENDOR
"Department for Business, Energy and Industrial Strategy","Department for Business, Energy and Industrial Strategy",11/05/2021,R & D Outsourced Other,Energy Transformation And Clean Growth - Science And Innovation,Glass Futures Ltd,387281,-134189.46,Net Zero Innovation Industry And Carbon Capture Demonstration-r & D Outsourced Other,S35 2PY,VENDOR
"Department for Business, Energy and Industrial Strategy","Department for Business, Energy and Industrial Strategy",11/05/2021,R & D Outsourced Other,Energy Transformation And Clean Growth - Science And Innovation,Glass Futures Ltd,387281,268378.92,Net Zero Innovation Industry And Carbon Capture Demonstration-r & D Outsourced Other,S35 2PY,VENDOR
"Department for Business, Energy and Industrial Strategy","Department for Business, Energy and Industrial Strategy",13/05/2021,R & D Outsourced Other,Energy Transformation And Clean Growth - Science And Innovation,John Fergus And Co Ltd,389667,35906.27,Net Zero Innovation Industry And Carbon Capture Demonstration-r & D Outsourced Other,KY6 2RX,VENDOR
"Department for Business, Energy and Industrial Strategy","Department for Business, Energy and Industrial Strategy",04/05/2021,R & D Outsourced Other,Energy Transformation And Clean Growth - Science And Innovation,Pale Blue Dot Energy (Acorn) Limited,391808,808691.28,Net Zero Innovation Industry And Carbon Capture Demonstration-r & D Outsourced Other,AB31 4BW,VENDOR
"Department for Business, Energy and Industrial Strategy","Department for Business, Energy and Industrial Strategy",05/05/2021,R & D Outsourced Other,Energy Transformation And Clean Growth - Science And Innovation,Itm Power (Trading) Ltd,391835,2281232.69,Net Zero Innovation Industry And Carbon Capture Demonstration-r & D Outsourced Other,S7 1NT,VENDOR
"Department for Business, Energy and Industrial Strategy","Department for Business, Energy and Industrial Strategy",06/05/2021,R & D Outsourced Other,Energy Transformation And Clean Growth - Science And Innovation,Progressive Energy Ltd,391859,459635.33,Net Zero Innovation Industry And Carbon Capture Demonstration-r & D Outsourced Other,GL10 3RF,VENDOR
"Department for Business, Energy and Industrial Strategy","Department for Business, Energy and Industrial Strategy",11/05/2021,Capital Grants To Private Sector - Companies,Energy Transformation And Clean Growth - Science And Innovation,Exergyn Ltd,392688,3957.59,Net Zero Innovation Industry And Carbon Capture Demonstration-capital Grants To Private Sector - Companies,D11,VENDOR
"Department for Business, Energy and Industrial Strategy","Department for Business, Energy and Industrial Strategy",10/05/2021,R & D Outsourced Other,Energy Transformation And Clean Growth - Science And Innovation,Progressive Energy Ltd,392689,412905.52,Net Zero Innovation Industry And Carbon Capture Demonstration-r & D Outsourced Other,GL10 3RF,VENDOR
"Department for Business, Energy and Industrial Strategy","Department for Business, Energy and Industrial Strategy",12/05/2021,R & D Outsourced Other,Energy Transformation And Clean Growth - Science And Innovation,Glass Futures Ltd,393239,25005.61,Net Zero Innovation Industry And Carbon Capture Demonstration-r & D Outsourced Other,S35 2PY,VENDOR
"Department for Business, Energy and Industrial Strategy","Department for Business, Energy and Industrial Strategy",14/05/2021,R & D Outsourced Other,Energy Transformation And Clean Growth - Science And Innovation,Cranfield University,393475,424679.14,Net Zero Innovation Industry And Carbon Capture Demonstration-r & D Outsourced Other,MK43 0AL,VENDOR
"Department for Business, Energy and Industrial Strategy","Department for Business, Energy and Industrial Strategy",14/05/2021,R & D Outsourced Other,Energy Transformation And Clean Growth - Science And Innovation,Mineral Products Association Ltd,393635,74823.32,Net Zero Innovation Industry And Carbon Capture Demonstration-r & D Outsourced Other,SW1V 1HU,VENDOR
"Department for Business, Energy and Industrial Strategy","Department for Business, Energy and Industrial Strategy",20/05/2021,R & D Outsourced Other,Energy Transformation And Clean Growth - Science And Innovation,Bennamann Ltd,394270,18080.05,Net Zero Innovation Industry And Carbon Capture Demonstration-r & D Outsourced Other,TR8 4RY,VENDOR
"Department for Business, Energy and Industrial Strategy","Department for Business, Energy and Industrial Strategy",25/05/2021,R & D Outsourced Other,Energy Transformation And Clean Growth - Science And Innovation,Progressive Energy Ltd,394811,87220.47,Net Zero Innovation Industry And Carbon Capture Demonstration-r & D Outsourced Other,GL10 3RF,VENDOR
"Department for Business, Energy and Industrial Strategy","Department for Business, Energy and Industrial Strategy",25/05/2021,R & D Outsourced Other,Energy Transformation And Clean Growth - Science And Innovation,Progressive Energy Ltd,394812,-40444.49,Net Zero Innovation Industry And Carbon Capture Demonstration-r & D Outsourced Other,GL10 3RF,VENDOR
"Department for Business, Energy and Industrial Strategy","Department for Business, Energy and Industrial Strategy",25/05/2021,R & D Outsourced Other,Energy Transformation And Clean Growth - Science And Innovation,Progressive Energy Ltd,394812,74148.23,Net Zero Innovation Industry And Carbon Capture Demonstration-r & D Outsourced Other,GL10 3RF,VENDOR
"Department for Business, Energy and Industrial Strategy","Department for Business, Energy and Industrial Strategy",25/05/2021,R & D Outsourced Other,Energy Transformation And Clean Growth - Science And Innovation,G2o Water Technologies Ltd,394813,41947.59,Net Zero Innovation Industry And Carbon Capture Demonstration-r & D Outsourced Other,M3 3WR,GRANT
"Department for Business, Energy and Industrial Strategy","Department for Business, Energy and Industrial Strategy",27/05/2021,R & D Outsourced Other,Energy Transformation And Clean Growth - Science And Innovation,Magnomatics Ltd,395020,77520.18,Net Zero Innovation Industry And Carbon Capture Demonstration-r & D Outsourced Other,S2 5BQ,VENDOR
"Department for Business, Energy and Industrial Strategy","Department for Business, Energy and Industrial Strategy",04/05/2021,R & D Outsourced Other,Energy Transformation And Clean Growth - Science And Innovation,Ove Arup And Partners Ltd,391841,391.82,Net Zero Innovation - Built-r & D Outsourced Other,NE1 3PL,VENDOR
"Department for Business, Energy and Industrial Strategy","Department for Business, Energy and Industrial Strategy",06/05/2021,R & D Outsourced Other,Energy Transformation And Clean Growth - Science And Innovation,Bsi Standards Ltd,392267,34000,Net Zero Innovation Cross Cutting-r & D Outsourced Other,W4 4AL,VENDOR
"Department for Business, Energy and Industrial Strategy","Department for Business, Energy and Industrial Strategy",12/05/2021,R & D Outsourced Other,Energy Transformation And Clean Growth - Science And Innovation,Enertek International Ltd,393232,52434,Net Zero Innovation - Built-r & D Outsourced Other,HU7 0YF,VENDOR
"Department for Business, Energy and Industrial Strategy","Department for Business, Energy and Industrial Strategy",14/05/2021,R & D Outsourced Other,Energy Transformation And Clean Growth - Science And Innovation,Arbnco Ltd,393634,39275.09,Net Zero Innovation - Built-r & D Outsourced Other,G1 1RD,VENDOR
"Department for Business, Energy and Industrial Strategy","Department for Business, Energy and Industrial Strategy",17/05/2021,R & D Outsourced Other,Energy Transformation And Clean Growth - Science And Innovation,Ovo Energy Ltd,393753,11524.01,Net Zero Innovation - Built-r & D Outsourced Other,BS1 6ED,VENDOR
"Department for Business, Energy and Industrial Strategy","Department for Business, Energy and Industrial Strategy",17/05/2021,R & D Outsourced Other,Energy Transformation And Clean Growth - Science And Innovation,Ovo Energy Ltd,393754,278947.75,Net Zero Innovation - Built-r & D Outsourced Other,BS1 6ED,VENDOR
"Department for Business, Energy and Industrial Strategy","Department for Business, Energy and Industrial Strategy",17/05/2021,R & D Outsourced Other,Energy Transformation And Clean Growth - Science And Innovation,Ovo Energy Ltd,393755,78585.12,Net Zero Innovation - Built-r & D Outsourced Other,BS1 6ED,VENDOR
"Department for Business, Energy and Industrial Strategy","Department for Business, Energy and Industrial Strategy",17/05/2021,R & D Outsourced Other,Energy Transformation And Clean Growth - Science And Innovation,Ovo Energy Ltd,393756,194.02,Net Zero Innovation - Built-r & D Outsourced Other,BS1 6ED,VENDOR
"Department for Business, Energy and Industrial Strategy","Department for Business, Energy and Industrial Strategy",17/05/2021,R & D Outsourced Other,Energy Transformation And Clean Growth - Science And Innovation,Ovo Energy Ltd,393757,7331.17,Net Zero Innovation - Built-r & D Outsourced Other,BS1 6ED,VENDOR
"Department for Business, Energy and Industrial Strategy","Department for Business, Energy and Industrial Strategy",17/05/2021,R & D Outsourced Other,Energy Transformation And Clean Growth - Science And Innovation,Energy Systems Catapult Ltd,393777,62675.49,Net Zero Innovation - Built-r & D Outsourced Other,B4 6BS,VENDOR
"Department for Business, Energy and Industrial Strategy","Department for Business, Energy and Industrial Strategy",24/05/2021,R & D Outsourced Other,Energy Transformation And Clean Growth - Science And Innovation,Solidpower Spa,394242,92362.6,Net Zero Innovation - Built-r & D Outsourced Other,38017,VENDOR
"Department for Business, Energy and Industrial Strategy","Department for Business, Energy and Industrial Strategy",20/05/2021,Capital Grants To Private Sector - Companies,Energy Transformation And Clean Growth - Science And Innovation,Energy Systems Catapult Ltd,394275,398556.04,Net Zero Innovation - Built-capital Grants To Private Sector - Companies,B4 6BS,VENDOR
"Department for Business, Energy and Industrial Strategy","Department for Business, Energy and Industrial Strategy",20/05/2021,R & D Outsourced Other,Energy Transformation And Clean Growth - Science And Innovation,Energypro Ltd,394279,26977.59,Net Zero Innovation - Built-r & D Outsourced Other,NW3 5TZ,VENDOR
"Department for Business, Energy and Industrial Strategy","Department for Business, Energy and Industrial Strategy",20/05/2021,R & D Outsourced Other,Energy Transformation And Clean Growth - Science And Innovation,Health And Safety Executive,394288,67035.96,Net Zero Innovation - Built-r & D Outsourced Other,SK17 9JN,VENDOR
"Department for Business, Energy and Industrial Strategy","Department for Business, Energy and Industrial Strategy",24/05/2021,Capital Grants To Private Sector - Companies,Energy Transformation And Clean Growth - Science And Innovation,Home Infrastructure Technology Ltd,394541,71517.28,Net Zero Innovation - Built-capital Grants To Private Sector - Companies,WA14 1ES,GRANT
"Department for Business, Energy and Industrial Strategy","Department for Business, Energy and Industrial Strategy",25/05/2021,R & D Outsourced Other,Energy Transformation And Clean Growth - Science And Innovation,Considerate Hoteliers Ltd,394830,16925,Net Zero Innovation - Built-r & D Outsourced Other,EC3N 1AL,VENDOR
"Department for Business, Energy and Industrial Strategy","Department for Business, Energy and Industrial Strategy",25/05/2021,R & D Outsourced Other,Energy Transformation And Clean Growth - Science And Innovation,Ove Arup And Partners Ltd,394835,66774.18,Net Zero Innovation - Built-r & D Outsourced Other,NE1 3PL,VENDOR
"Department for Business, Energy and Industrial Strategy","Department for Business, Energy and Industrial Strategy",27/05/2021,R & D Outsourced Other,Energy Transformation And Clean Growth - Science And Innovation,Vrm Technology Ltd,395059,133922.49,Net Zero Innovation - Built-r & D Outsourced Other,WC1X 9DE,VENDOR
"Department for Business, Energy and Industrial Strategy","Department for Business, Energy and Industrial Strategy",11/05/2021,R & D Outsourced Other,Energy Transformation And Clean Growth - Science And Innovation,Edf Energy R And D Uk Centre Ltd,386854,-20628.08,Net Zero Innovation - Smart-r & D Outsourced Other,W1T 4EZ,VENDOR
"Department for Business, Energy and Industrial Strategy","Department for Business, Energy and Industrial Strategy",04/05/2021,Exp - Miscellaneous Expenditure - Iexpenses,Energy Transformation And Clean Growth - Science And Innovation,"Personal Expense, Name Withheld",391884,285.12,Mf Devolved Admin-exp - Miscellaneous Expenditure - Iexpenses,,EMPLOYEE
"Department for Business, Energy and Industrial Strategy","Department for Business, Energy and Industrial Strategy",06/05/2021,R & D Outsourced Other,Energy Transformation And Clean Growth - Science And Innovation,Samsung Electronics (Uk) Ltd,391998,-180705,Net Zero Innovation - Smart-r & D Outsourced Other,KT160PS,VENDOR
"Department for Business, Energy and Industrial Strategy","Department for Business, Energy and Industrial Strategy",06/05/2021,R & D Outsourced Other,Energy Transformation And Clean Growth - Science And Innovation,Samsung Electronics (Uk) Ltd,392000,149205.96,Net Zero Innovation - Smart-r & D Outsourced Other,KT160PS,VENDOR
"Department for Business, Energy and Industrial Strategy","Department for Business, Energy and Industrial Strategy",05/05/2021,R & D Outsourced Other,Energy Transformation And Clean Growth - Science And Innovation,Element Energy Ltd,392007,8340.75,Net Zero Innovation - Smart-r & D Outsourced Other,CB5 8AQ,VENDOR
"Department for Business, Energy and Industrial Strategy","Department for Business, Energy and Industrial Strategy",05/05/2021,Exp - Miscellaneous Expenditure - Iexpenses,Energy Transformation And Clean Growth - Science And Innovation,"Personal Expense, Name Withheld",392035,99,Net Zero Innovation - Smart-exp - Miscellaneous Expenditure - Iexpenses,,EMPLOYEE
"Department for Business, Energy and Industrial Strategy","Department for Business, Energy and Industrial Strategy",06/05/2021,Capital Grants To Private Sector - Companies,Energy Transformation And Clean Growth - Science And Innovation,Chaddenwych Services Ltd T/A Electron,392244,79335.73,Net Zero Innovation - Smart-capital Grants To Private Sector - Companies,EC2A 4NE,VENDOR
"Department for Business, Energy and Industrial Strategy","Department for Business, Energy and Industrial Strategy",06/05/2021,Capital Grants To Private Sector - Companies,Energy Transformation And Clean Growth - Science And Innovation,Levelise Ltd,392312,63043.47,Net Zero Innovation - Smart-capital Grants To Private Sector - Companies,OX4 4GB,VENDOR
"Department for Business, Energy and Industrial Strategy","Department for Business, Energy and Industrial Strategy",07/05/2021,Capital Grants To Private Sector - Companies,Energy Transformation And Clean Growth - Science And Innovation,Synchrostor Ltd,392340,79549.59,Net Zero Innovation - Smart-capital Grants To Private Sector - Companies,EH9 3DW,GRANT
"Department for Business, Energy and Industrial Strategy","Department for Business, Energy and Industrial Strategy",10/05/2021,Capital Grants To Private Sector - Companies,Energy Transformation And Clean Growth - Science And Innovation,Scene Connect Ltd,392844,55764.64,Net Zero Innovation - Smart-capital Grants To Private Sector - Companies,EH6 6RS,GRANT
"Department for Business, Energy and Industrial Strategy","Department for Business, Energy and Industrial Strategy",11/05/2021,Capital Grants To Private Sector - Companies,Energy Transformation And Clean Growth - Science And Innovation,Qbots Energy Ltd,393043,372642.35,Net Zero Innovation - Smart-capital Grants To Private Sector - Companies,M15 6SE,GRANT
"Department for Business, Energy and Industrial Strategy","Department for Business, Energy and Industrial Strategy",11/05/2021,R & D Outsourced Other,Energy Transformation And Clean Growth - Science And Innovation,Edf Energy R And D Uk Centre Ltd,393066,61232.2,Net Zero Innovation - Smart-r & D Outsourced Other,W1T 4EZ,VENDOR
"Department for Business, Energy and Industrial Strategy","Department for Business, Energy and Industrial Strategy",11/05/2021,Capital Grants To Private Sector - Companies,Energy Transformation And Clean Growth - Science And Innovation,Scottish Hydro Electric Power Distribution Plc,393094,230913.45,Net Zero Innovation - Smart-capital Grants To Private Sector - Companies,PH1 3AQ,GRANT
"Department for Business, Energy and Industrial Strategy","Department for Business, Energy and Industrial Strategy",11/05/2021,Capital Grants To Private Sector - Companies,Energy Transformation And Clean Growth - Science And Innovation,Scottish Hydro Electric Power Distribution Plc,393112,124312.34,Net Zero Innovation - Smart-capital Grants To Private Sector - Companies,PH1 3AQ,GRANT
"Department for Business, Energy and Industrial Strategy","Department for Business, Energy and Industrial Strategy",12/05/2021,R & D Outsourced Other,Energy Transformation And Clean Growth - Science And Innovation,Transition Bath Ltd,393253,10800.49,Net Zero Innovation - Smart-r & D Outsourced Other,BA2 7UW,VENDOR
"Department for Business, Energy and Industrial Strategy","Department for Business, Energy and Industrial Strategy",12/05/2021,R & D Outsourced Other,Energy Transformation And Clean Growth - Science And Innovation,Transition Bath Ltd,393255,3200,Net Zero Innovation - Smart-r & D Outsourced Other,BA2 7UW,VENDOR
"Department for Business, Energy and Industrial Strategy","Department for Business, Energy and Industrial Strategy",14/05/2021,R & D Outsourced Other,Energy Transformation And Clean Growth - Science And Innovation,Cambridge Energy Group Ltd,393478,22320,Net Zero Innovation - Smart-r & D Outsourced Other,CB3 9LL,VENDOR
"Department for Business, Energy and Industrial Strategy","Department for Business, Energy and Industrial Strategy",19/05/2021,Stationery,Energy Transformation And Clean Growth - Science And Innovation,"Personal Expense, Name Withheld",394126,264.66,Mf Devolved Admin-stationery,,EMPLOYEE
"Department for Business, Energy and Industrial Strategy","Department for Business, Energy and Industrial Strategy",21/05/2021,Motor Vehicle Hire,Energy Transformation And Clean Growth - Science And Innovation,"Personal Expense, Name Withheld",394432,51.25,Mf Devolved Admin-motor Vehicle Hire,,EMPLOYEE
"Department for Business, Energy and Industrial Strategy","Department for Business, Energy and Industrial Strategy",25/05/2021,Stationery,Energy Transformation And Clean Growth - Science And Innovation,"Personal Expense, Name Withheld",394727,53.95,Mf Devolved Admin-stationery,,EMPLOYEE
"Department for Business, Energy and Industrial Strategy","Department for Business, Energy and Industrial Strategy",27/05/2021,Audit Services,Energy Transformation And Clean Growth - Science And Innovation,Cg Lee Ltd T/A Lee,395030,4950,Net Zero Innovation - Nuclear-audit Services,NR7 0TA,VENDOR
"Department for Business, Energy and Industrial Strategy","Department for Business, Energy and Industrial Strategy",27/05/2021,R & D Outsourced Other,Energy Transformation And Clean Growth - Science And Innovation,Gridimp Ltd,395109,45000,Net Zero Innovation - Smart-r & D Outsourced Other,TA6 4FJ,VENDOR
"Department for Business, Energy and Industrial Strategy","Department for Business, Energy and Industrial Strategy",27/05/2021,R & D Outsourced Other,Energy Transformation And Clean Growth - Science And Innovation,Gridimp Ltd,395110,20000,Net Zero Innovation - Smart-r & D Outsourced Other,TA6 4FJ,VENDOR
"Department for Business, Energy and Industrial Strategy","Department for Business, Energy and Industrial Strategy",27/05/2021,Capital Grants To Private Sector - Companies,Energy Transformation And Clean Growth - Science And Innovation,Sero Technologies Ltd,395112,6272,Net Zero Innovation - Smart-capital Grants To Private Sector - Companies,CF10 1BR,GRANT
"Department for Business, Energy and Industrial Strategy","Department for Business, Energy and Industrial Strategy",27/05/2021,Capital Grants To Private Sector - Companies,Energy Transformation And Clean Growth - Science And Innovation,Lightbulb Es Ltd,395116,34117.05,Net Zero Innovation - Smart-capital Grants To Private Sector - Companies,SO15 2NP,GRANT
"Department for Business, Energy and Industrial Strategy","Department for Business, Energy and Industrial Strategy",27/05/2021,R & D Outsourced Other,Energy Transformation And Clean Growth - Science And Innovation,Vital Energi Utilities Ltd,395140,30000,Net Zero Innovation - Smart-r & D Outsourced Other,BB1 2LD,VENDOR
"Department for Business, Energy and Industrial Strategy","Department for Business, Energy and Industrial Strategy",28/05/2021,R & D Outsourced Other,Energy Transformation And Clean Growth - Science And Innovation,Element Energy Ltd,395157,165504.75,Net Zero Innovation - Smart-r & D Outsourced Other,CB5 8AQ,VENDOR
"Department for Business, Energy and Industrial Strategy","Department for Business, Energy and Industrial Strategy",28/05/2021,Capital Grants To Private Sector - Companies,Energy Transformation And Clean Growth - Science And Innovation,Gengame Ltd,395239,55327.86,Net Zero Innovation - Smart-capital Grants To Private Sector - Companies,LE1 5XY,VENDOR
"Department for Business, Energy and Industrial Strategy","Department for Business, Energy and Industrial Strategy",27/05/2021,Capital Grants To Private Sector - Companies,Energy Transformation And Clean Growth - Science And Innovation,Energy Systems Catapult Ltd,395058,38246.78,Delivery Of Beis Energy Innovation-capital Grants To Private Sector - Companies,B4 6BS,VENDOR
"Department for Business, Energy and Industrial Strategy","Department for Business, Energy and Industrial Strategy",05/05/2021,Business Rates,Energy Transformation And Clean Growth - Science And Innovation,Ministry Of Defence,388754,213851.24,Mf Devolved Admin-business Rates,L2 3YL,WGA ONLY
"Department for Business, Energy and Industrial Strategy","Department for Business, Energy and Industrial Strategy",10/05/2021,Business Rates,Energy Transformation And Clean Growth - Science And Innovation,Ministry Of Defence,391887,889452.58,Mf Devolved Admin-business Rates,L2 3YL,WGA ONLY
"Department for Business, Energy and Industrial Strategy","Department for Business, Energy and Industrial Strategy",05/05/2021,R & D Outsourced Other,Energy Transformation And Clean Growth - Science And Innovation,Tokamak Energy Ltd,391937,319801.54,Net Zero Innovation - Nuclear-r & D Outsourced Other,OX14 4SD,VENDOR
"Department for Business, Energy and Industrial Strategy","Department for Business, Energy and Industrial Strategy",05/05/2021,Business Rates,Energy Transformation And Clean Growth - Science And Innovation,Ministry Of Defence,391961,310654.1,Mf Devolved Admin-business Rates,L2 3YL,WGA ONLY
"Department for Business, Energy and Industrial Strategy","Department for Business, Energy and Industrial Strategy",11/05/2021,Capital Grants To Private Sector - Companies,Energy Transformation And Clean Growth - Science And Innovation,Rotaheat Ltd,393069,50669.54,Net Zero Innovation Cross Cutting-capital Grants To Private Sector - Companies,SP5 4DF,VENDOR
"Department for Business, Energy and Industrial Strategy","Department for Business, Energy and Industrial Strategy",11/05/2021,Capital Grants To Private Sector - Companies,Energy Transformation And Clean Growth - Science And Innovation,Gyrotricity Ltd,393080,21499,Net Zero Innovation Cross Cutting-capital Grants To Private Sector - Companies,TW10 5EF,GRANT
"Department for Business, Energy and Industrial Strategy","Department for Business, Energy and Industrial Strategy",11/05/2021,Capital Grants To Private Sector - Companies,Energy Transformation And Clean Growth - Science And Innovation,Gyrotricity Ltd,393090,43328,Net Zero Innovation Cross Cutting-capital Grants To Private Sector - Companies,TW10 5EF,GRANT
"Department for Business, Energy and Industrial Strategy","Department for Business, Energy and Industrial Strategy",11/05/2021,R & D Research And Development Expenditure,Energy Transformation And Clean Growth - Science And Innovation,Carbon Limiting Technologies Ltd,393122,43800.09,Net Zero Innovation Cross Cutting-r & D Research And Development Expenditure,GU51 5SY,GRANT
"Department for Business, Energy and Industrial Strategy","Department for Business, Energy and Industrial Strategy",11/05/2021,R & D Research And Development Expenditure,Energy Transformation And Clean Growth - Science And Innovation,Carbon Limiting Technologies Ltd,393125,54221.91,Net Zero Innovation Cross Cutting-r & D Research And Development Expenditure,GU51 5SY,GRANT
"Department for Business, Energy and Industrial Strategy","Department for Business, Energy and Industrial Strategy",11/05/2021,R & D Research And Development Expenditure,Energy Transformation And Clean Growth - Science And Innovation,Carbon Limiting Technologies Ltd,393130,55949.49,Net Zero Innovation Cross Cutting-r & D Research And Development Expenditure,GU51 5SY,GRANT
"Department for Business, Energy and Industrial Strategy","Department for Business, Energy and Industrial Strategy",11/05/2021,R & D Research And Development Expenditure,Energy Transformation And Clean Growth - Science And Innovation,Carbon Limiting Technologies Ltd,393132,12061.69,Net Zero Innovation Cross Cutting-r & D Research And Development Expenditure,GU51 5SY,GRANT
"Department for Business, Energy and Industrial Strategy","Department for Business, Energy and Industrial Strategy",11/05/2021,R & D Research And Development Expenditure,Energy Transformation And Clean Growth - Science And Innovation,Carbon Limiting Technologies Ltd,393136,4973.73,Net Zero Innovation Cross Cutting-r & D Research And Development Expenditure,GU51 5SY,GRANT
"Department for Business, Energy and Industrial Strategy","Department for Business, Energy and Industrial Strategy",11/05/2021,R & D Research And Development Expenditure,Energy Transformation And Clean Growth - Science And Innovation,Carbon Limiting Technologies Ltd,393136,8337.78,Net Zero Innovation Cross Cutting-r & D Research And Development Expenditure,GU51 5SY,GRANT
"Department for Business, Energy and Industrial Strategy","Department for Business, Energy and Industrial Strategy",17/05/2021,R & D Research And Development Expenditure,Energy Transformation And Clean Growth - Science And Innovation,Carbon Limiting Technologies Ltd,393192,-28221.63,Net Zero Innovation Cross Cutting-r & D Research And Development Expenditure,GU51 5SY,GRANT
"Department for Business, Energy and Industrial Strategy","Department for Business, Energy and Industrial Strategy",17/05/2021,R & D Research And Development Expenditure,Energy Transformation And Clean Growth - Science And Innovation,Carbon Limiting Technologies Ltd,393192,6948.15,Net Zero Innovation Cross Cutting-r & D Research And Development Expenditure,GU51 5SY,GRANT
"Department for Business, Energy and Industrial Strategy","Department for Business, Energy and Industrial Strategy",17/05/2021,R & D Research And Development Expenditure,Energy Transformation And Clean Growth - Science And Innovation,Carbon Limiting Technologies Ltd,393192,53749.81,Net Zero Innovation Cross Cutting-r & D Research And Development Expenditure,GU51 5SY,GRANT
"Department for Business, Energy and Industrial Strategy","Department for Business, Energy and Industrial Strategy",17/05/2021,R & D Technical Advice/Services And Support,Energy Transformation And Clean Growth - Science And Innovation,Mott Macdonald Ltd,393669,17401.4,Net Zero Innovation Cross Cutting-r & D Technical Advice/Services And Support,CR0 2EE,VENDOR
"Department for Business, Energy and Industrial Strategy","Department for Business, Energy and Industrial Strategy",17/05/2021,R & D Technical Advice/Services And Support,Energy Transformation And Clean Growth - Science And Innovation,Mott Macdonald Ltd,393672,2792.75,Net Zero Innovation Cross Cutting-r & D Technical Advice/Services And Support,CR0 2EE,VENDOR
"Department for Business, Energy and Industrial Strategy","Department for Business, Energy and Industrial Strategy",17/05/2021,R & D Technical Advice/Services And Support,Energy Transformation And Clean Growth - Science And Innovation,Mott Macdonald Ltd,393673,10790.25,Net Zero Innovation Cross Cutting-r & D Technical Advice/Services And Support,CR0 2EE,VENDOR
"Department for Business, Energy and Industrial Strategy","Department for Business, Energy and Industrial Strategy",17/05/2021,R & D Technical Advice/Services And Support,Energy Transformation And Clean Growth - Science And Innovation,Mott Macdonald Ltd,393678,2958.75,Net Zero Innovation Cross Cutting-r & D Technical Advice/Services And Support,CR0 2EE,VENDOR
"Department for Business, Energy and Industrial Strategy","Department for Business, Energy and Industrial Strategy",17/05/2021,R & D Technical Advice/Services And Support,Energy Transformation And Clean Growth - Science And Innovation,Mott Macdonald Ltd,393687,13388.45,Net Zero Innovation Cross Cutting-r & D Technical Advice/Services And Support,CR0 2EE,VENDOR
"Department for Business, Energy and Industrial Strategy","Department for Business, Energy and Industrial Strategy",17/05/2021,R & D Technical Advice/Services And Support,Energy Transformation And Clean Growth - Science And Innovation,Mott Macdonald Ltd,393692,2305.5,Net Zero Innovation Cross Cutting-r & D Technical Advice/Services And Support,CR0 2EE,VENDOR
"Department for Business, Energy and Industrial Strategy","Department for Business, Energy and Industrial Strategy",17/05/2021,R & D Technical Advice/Services And Support,Energy Transformation And Clean Growth - Science And Innovation,Mott Macdonald Ltd,393694,4545.35,Net Zero Innovation Cross Cutting-r & D Technical Advice/Services And Support,CR0 2EE,VENDOR
"Department for Business, Energy and Industrial Strategy","Department for Business, Energy and Industrial Strategy",17/05/2021,R & D Technical Advice/Services And Support,Energy Transformation And Clean Growth - Science And Innovation,Mott Macdonald Ltd,393695,7332.65,Net Zero Innovation Cross Cutting-r & D Technical Advice/Services And Support,CR0 2EE,VENDOR
"Department for Business, Energy and Industrial Strategy","Department for Business, Energy and Industrial Strategy",17/05/2021,R & D Technical Advice/Services And Support,Energy Transformation And Clean Growth - Science And Innovation,Mott Macdonald Ltd,393696,777,Net Zero Innovation Cross Cutting-r & D Technical Advice/Services And Support,CR0 2EE,VENDOR
"Department for Business, Energy and Industrial Strategy","Department for Business, Energy and Industrial Strategy",17/05/2021,R & D Technical Advice/Services And Support,Energy Transformation And Clean Growth - Science And Innovation,Mott Macdonald Ltd,393697,9539.25,Net Zero Innovation Cross Cutting-r & D Technical Advice/Services And Support,CR0 2EE,VENDOR
"Department for Business, Energy and Industrial Strategy","Department for Business, Energy and Industrial Strategy",17/05/2021,R & D Technical Advice/Services And Support,Energy Transformation And Clean Growth - Science And Innovation,Mott Macdonald Ltd,393698,13273.75,Net Zero Innovation Cross Cutting-r & D Technical Advice/Services And Support,CR0 2EE,VENDOR
"Department for Business, Energy and Industrial Strategy","Department for Business, Energy and Industrial Strategy",17/05/2021,R & D Technical Advice/Services And Support,Energy Transformation And Clean Growth - Science And Innovation,Mott Macdonald Ltd,393699,4245.3,Net Zero Innovation Cross Cutting-r & D Technical Advice/Services And Support,CR0 2EE,VENDOR
"Department for Business, Energy and Industrial Strategy","Department for Business, Energy and Industrial Strategy",17/05/2021,R & D Technical Advice/Services And Support,Energy Transformation And Clean Growth - Science And Innovation,Mott Macdonald Ltd,393700,3573,Net Zero Innovation Cross Cutting-r & D Technical Advice/Services And Support,CR0 2EE,VENDOR
"Department for Business, Energy and Industrial Strategy","Department for Business, Energy and Industrial Strategy",17/05/2021,R & D Technical Advice/Services And Support,Energy Transformation And Clean Growth - Science And Innovation,Mott Macdonald Ltd,393701,12378.15,Net Zero Innovation Cross Cutting-r & D Technical Advice/Services And Support,CR0 2EE,VENDOR
"Department for Business, Energy and Industrial Strategy","Department for Business, Energy and Industrial Strategy",17/05/2021,R & D Technical Advice/Services And Support,Energy Transformation And Clean Growth - Science And Innovation,Mott Macdonald Ltd,393711,37367.65,Net Zero Innovation Cross Cutting-r & D Technical Advice/Services And Support,CR0 2EE,VENDOR
"Department for Business, Energy and Industrial Strategy","Department for Business, Energy and Industrial Strategy",17/05/2021,R & D Technical Advice/Services And Support,Energy Transformation And Clean Growth - Science And Innovation,Mott Macdonald Ltd,393712,11824.8,Net Zero Innovation Cross Cutting-r & D Technical Advice/Services And Support,CR0 2EE,VENDOR
"Department for Business, Energy and Industrial Strategy","Department for Business, Energy and Industrial Strategy",17/05/2021,R & D Technical Advice/Services And Support,Energy Transformation And Clean Growth - Science And Innovation,Mott Macdonald Ltd,393722,11860.5,Net Zero Innovation Cross Cutting-r & D Technical Advice/Services And Support,CR0 2EE,VENDOR
"Department for Business, Energy and Industrial Strategy","Department for Business, Energy and Industrial Strategy",17/05/2021,R & D Technical Advice/Services And Support,Energy Transformation And Clean Growth - Science And Innovation,Mott Macdonald Ltd,393723,3705.95,Net Zero Innovation Cross Cutting-r & D Technical Advice/Services And Support,CR0 2EE,VENDOR
"Department for Business, Energy and Industrial Strategy","Department for Business, Energy and Industrial Strategy",17/05/2021,R & D Technical Advice/Services And Support,Energy Transformation And Clean Growth - Science And Innovation,Mott Macdonald Ltd,393729,122.2,Net Zero Innovation Cross Cutting-r & D Technical Advice/Services And Support,CR0 2EE,VENDOR
"Department for Business, Energy and Industrial Strategy","Department for Business, Energy and Industrial Strategy",17/05/2021,R & D Technical Advice/Services And Support,Energy Transformation And Clean Growth - Science And Innovation,Mott Macdonald Ltd,393731,12692.8,Net Zero Innovation Cross Cutting-r & D Technical Advice/Services And Support,CR0 2EE,VENDOR
"Department for Business, Energy and Industrial Strategy","Department for Business, Energy and Industrial Strategy",17/05/2021,R & D Technical Advice/Services And Support,Energy Transformation And Clean Growth - Science And Innovation,Mott Macdonald Ltd,393747,5390,Net Zero Innovation Cross Cutting-r & D Technical Advice/Services And Support,CR0 2EE,VENDOR
"Department for Business, Energy and Industrial Strategy","Department for Business, Energy and Industrial Strategy",17/05/2021,R & D Technical Advice/Services And Support,Energy Transformation And Clean Growth - Science And Innovation,Mott Macdonald Ltd,393749,7200,Net Zero Innovation Cross Cutting-r & D Technical Advice/Services And Support,CR0 2EE,VENDOR
"Department for Business, Energy and Industrial Strategy","Department for Business, Energy and Industrial Strategy",17/05/2021,R & D Technical Advice/Services And Support,Energy Transformation And Clean Growth - Science And Innovation,Mott Macdonald Ltd,393759,17774.5,Net Zero Innovation Cross Cutting-r & D Technical Advice/Services And Support,CR0 2EE,VENDOR
"Department for Business, Energy and Industrial Strategy","Department for Business, Energy and Industrial Strategy",17/05/2021,R & D Technical Advice/Services And Support,Energy Transformation And Clean Growth - Science And Innovation,Mott Macdonald Ltd,393763,7604.7,Net Zero Innovation Cross Cutting-r & D Technical Advice/Services And Support,CR0 2EE,VENDOR
"Department for Business, Energy and Industrial Strategy","Department for Business, Energy and Industrial Strategy",17/05/2021,Other Goods/Services,Energy Transformation And Clean Growth - Science And Innovation,Icotech Group Ltd,393771,26637.25,Net Zero Innovation Cross Cutting-other Goods/Services,CF3 6YA,VENDOR
"Department for Business, Energy and Industrial Strategy","Department for Business, Energy and Industrial Strategy",18/05/2021,Exp - Miscellaneous Expenditure - Iexpenses,Energy Transformation And Clean Growth - Science And Innovation,"Personal Expense, Name Withheld",393918,83.98,Mf Devolved Admin-exp - Miscellaneous Expenditure - Iexpenses,,EMPLOYEE
"Department for Business, Energy and Industrial Strategy","Department for Business, Energy and Industrial Strategy",19/05/2021,Other Goods/Services,Energy Transformation And Clean Growth - Science And Innovation,Icotech Group Ltd,394203,54916.25,Net Zero Innovation Cross Cutting-other Goods/Services,CF3 6YA,VENDOR
"Department for Business, Energy and Industrial Strategy","Department for Business, Energy and Industrial Strategy",20/05/2021,R & D Outsourced Other,Energy Transformation And Clean Growth - Science And Innovation,Energy Systems Catapult Ltd,394282,303495.66,Net Zero Innovation Cross Cutting-r & D Outsourced Other,B4 6BS,VENDOR
"Department for Business, Energy and Industrial Strategy","Department for Business, Energy and Industrial Strategy",20/05/2021,Stationery,Energy Transformation And Clean Growth - Science And Innovation,"Personal Expense, Name Withheld",394302,214,Mf Devolved Admin-stationery,,EMPLOYEE
"Department for Business, Energy and Industrial Strategy","Department for Business, Energy and Industrial Strategy",21/05/2021,Capital Grants To Private Sector - Companies,Energy Transformation And Clean Growth - Science And Innovation,Grid Edge Ltd,394377,86844.11,Net Zero Innovation Cross Cutting-capital Grants To Private Sector - Companies,B4 7LR,GRANT
"Department for Business, Energy and Industrial Strategy","Department for Business, Energy and Industrial Strategy",21/05/2021,Capital Grants To Private Sector - Companies,Energy Transformation And Clean Growth - Science And Innovation,Grid Edge Ltd,394383,27528.14,Net Zero Innovation Cross Cutting-capital Grants To Private Sector - Companies,B4 7LR,GRANT
"Department for Business, Energy and Industrial Strategy","Department for Business, Energy and Industrial Strategy",24/05/2021,Capital Grants To Private Sector - Companies,Energy Transformation And Clean Growth - Science And Innovation,Oxford Nanosystems Ltd,394472,87134.17,Net Zero Innovation Cross Cutting-capital Grants To Private Sector - Companies,OX11 0QX,GRANT
"Department for Business, Energy and Industrial Strategy","Department for Business, Energy and Industrial Strategy",24/05/2021,Stationery,Energy Transformation And Clean Growth - Science And Innovation,"Personal Expense, Name Withheld",394544,175.4,Mf Devolved Admin-stationery,,EMPLOYEE
"Department for Business, Energy and Industrial Strategy","Department for Business, Energy and Industrial Strategy",26/05/2021,Capital Grants To Private Sector - Companies,Energy Transformation And Clean Growth - Science And Innovation,Tokamak Energy Ltd,394870,65025.98,Net Zero Innovation Cross Cutting-capital Grants To Private Sector - Companies,OX14 4SD,VENDOR
"Department for Business, Energy and Industrial Strategy","Department for Business, Energy and Industrial Strategy",28/05/2021,R & D Research And Development Expenditure,Energy Transformation And Clean Growth - Science And Innovation,Carbon Limiting Technologies Ltd,395021,-6843.75,Net Zero Innovation Cross Cutting-r & D Research And Development Expenditure,GU51 5SY,GRANT
"Department for Business, Energy and Industrial Strategy","Department for Business, Energy and Industrial Strategy",28/05/2021,R & D Research And Development Expenditure,Energy Transformation And Clean Growth - Science And Innovation,Carbon Limiting Technologies Ltd,395021,15056.25,Net Zero Innovation Cross Cutting-r & D Research And Development Expenditure,GU51 5SY,GRANT
"Department for Business, Energy and Industrial Strategy","Department for Business, Energy and Industrial Strategy",27/05/2021,Professional Subscriptions,Energy Transformation And Clean Growth - Science And Innovation,"Personal Expense, Name Withheld",395093,120.7,Mf Devolved Admin-professional Subscriptions,,EMPLOYEE
"Department for Business, Energy and Industrial Strategy","Department for Business, Energy and Industrial Strategy",27/05/2021,R & D Technical Advice/Services And Support,Energy Transformation And Clean Growth - Science And Innovation,Mott Macdonald Ltd,395141,2013.45,Net Zero Innovation Cross Cutting-r & D Technical Advice/Services And Support,CR0 2EE,VENDOR
"Department for Business, Energy and Industrial Strategy","Department for Business, Energy and Industrial Strategy",28/05/2021,Capital Grants To Private Sector - Companies,Energy Transformation And Clean Growth - Science And Innovation,Matrix Moulding Systems Ltd,395182,61115.85,Net Zero Innovation Cross Cutting-capital Grants To Private Sector - Companies,NG23 5FF,GRANT
"Department for Business, Energy and Industrial Strategy","Department for Business, Energy and Industrial Strategy",28/05/2021,Stationery,Energy Transformation And Clean Growth - Science And Innovation,"Personal Expense, Name Withheld",395217,28.99,Mf Devolved Admin-stationery,,EMPLOYEE
"Department for Business, Energy and Industrial Strategy","Department for Business, Energy and Industrial Strategy",20/05/2021,Current Grants To Private Sector - Npish,Energy Transformation And Clean Growth - International Climate Change,United Nations Environment Programme (Unep),389975,900,Climate Strategy And Engagement-current Grants To Private Sector - Npish,DK 2100,GRANT
"Department for Business, Energy and Industrial Strategy","Department for Business, Energy and Industrial Strategy",20/05/2021,Current Grants To Private Sector - Npish,Energy Transformation And Clean Growth - International Climate Change,United Nations Environment Programme (Unep),389975,72000,Climate Strategy And Engagement-current Grants To Private Sector - Npish,DK 2100,GRANT
"Department for Business, Energy and Industrial Strategy","Department for Business, Energy and Industrial Strategy",10/05/2021,Contractor Expenditure,Energy Transformation And Clean Growth - International Climate Change,Alexander Mann Solutions Ltd,392300,978.5,Mf Devolved Admin-contractor Expenditure,EC2N 3AQ,VENDOR
"Department for Business, Energy and Industrial Strategy","Department for Business, Energy and Industrial Strategy",10/05/2021,Contractor Expenditure,Energy Transformation And Clean Growth - International Climate Change,Alexander Mann Solutions Ltd,392300,978.5,Mf Devolved Admin-contractor Expenditure,EC2N 3AQ,VENDOR
"Department for Business, Energy and Industrial Strategy","Department for Business, Energy and Industrial Strategy",11/05/2021,Hotel & Accommodation Uk,Energy Transformation And Clean Growth - International Climate Change,Mci Suisse Sa,392322,64080,Mf Devolved Admin-hotel & Accommodation Uk,1242 Satigny,VENDOR
"Department for Business, Energy and Industrial Strategy","Department for Business, Energy and Industrial Strategy",07/05/2021,Current Grants To Private Sector - Npish,Energy Transformation And Clean Growth - International Climate Change,Aldersgate Ltd T/A Aldersgate Group,392485,9999,Climate Strategy And Engagement-current Grants To Private Sector - Npish,W1F 8WE,VENDOR
"Department for Business, Energy and Industrial Strategy","Department for Business, Energy and Industrial Strategy",10/05/2021,Stationery,Energy Transformation And Clean Growth - International Climate Change,"Personal Expense, Name Withheld",392909,16.88,Mf Devolved Admin-stationery,,EMPLOYEE
"Department for Business, Energy and Industrial Strategy","Department for Business, Energy and Industrial Strategy",12/05/2021,Contractor Expenditure,Energy Transformation And Clean Growth - International Climate Change,Alexander Mann Solutions Ltd,393019,912.38,Mf Devolved Admin-contractor Expenditure,EC2N 3AQ,VENDOR
"Department for Business, Energy and Industrial Strategy","Department for Business, Energy and Industrial Strategy",12/05/2021,Contractor Expenditure,Energy Transformation And Clean Growth - International Climate Change,Alexander Mann Solutions Ltd,393019,912.39,Mf Devolved Admin-contractor Expenditure,EC2N 3AQ,VENDOR
"Department for Business, Energy and Industrial Strategy","Department for Business, Energy and Industrial Strategy",11/05/2021,Translations,Energy Transformation And Clean Growth - International Climate Change,Fcdo Services,393064,90.29,Climate Strategy And Engagement-translations,MK19 7BH,WGA ONLY
"Department for Business, Energy and Industrial Strategy","Department for Business, Energy and Industrial Strategy",11/05/2021,Translations,Energy Transformation And Clean Growth - International Climate Change,Fcdo Services,393064,225.71,Climate Strategy And Engagement-translations,MK19 7BH,WGA ONLY
"Department for Business, Energy and Industrial Strategy","Department for Business, Energy and Industrial Strategy",12/05/2021,Stationery,Energy Transformation And Clean Growth - International Climate Change,"Personal Expense, Name Withheld",393285,44.98,Mf Devolved Admin-stationery,,EMPLOYEE
"Department for Business, Energy and Industrial Strategy","Department for Business, Energy and Industrial Strategy",21/05/2021,Contractor Expenditure,Energy Transformation And Clean Growth - International Climate Change,Alexander Mann Solutions Ltd,394216,793.38,Mf Devolved Admin-contractor Expenditure,EC2N 3AQ,VENDOR
"Department for Business, Energy and Industrial Strategy","Department for Business, Energy and Industrial Strategy",21/05/2021,Contractor Expenditure,Energy Transformation And Clean Growth - International Climate Change,Alexander Mann Solutions Ltd,394216,793.38,Mf Devolved Admin-contractor Expenditure,EC2N 3AQ,VENDOR
"Department for Business, Energy and Industrial Strategy","Department for Business, Energy and Industrial Strategy",21/05/2021,Stationery,Energy Transformation And Clean Growth - International Climate Change,"Personal Expense, Name Withheld",394427,174.39,Mf Devolved Admin-stationery,,EMPLOYEE
"Department for Business, Energy and Industrial Strategy","Department for Business, Energy and Industrial Strategy",26/05/2021,Contractor Expenditure,Energy Transformation And Clean Growth - International Climate Change,Alexander Mann Solutions Ltd,394705,958.67,Mf Devolved Admin-contractor Expenditure,EC2N 3AQ,VENDOR
"Department for Business, Energy and Industrial Strategy","Department for Business, Energy and Industrial Strategy",26/05/2021,Contractor Expenditure,Energy Transformation And Clean Growth - International Climate Change,Alexander Mann Solutions Ltd,394705,958.68,Mf Devolved Admin-contractor Expenditure,EC2N 3AQ,VENDOR
"Department for Business, Energy and Industrial Strategy","Department for Business, Energy and Industrial Strategy",26/05/2021,Stationery,Energy Transformation And Clean Growth - International Climate Change,"Personal Expense, Name Withheld",394938,5.9,Mf Devolved Admin-stationery,,EMPLOYEE
"Department for Business, Energy and Industrial Strategy","Department for Business, Energy and Industrial Strategy",11/05/2021,Current Grants To Private Sector - Npish,Energy Transformation And Clean Growth - International Energy And Climate Finance,The Brookings Institute,391939,169136,International Climate Finance (Icf)-Current Grants To Private Sector - Npish,20036,VENDOR
"Department for Business, Energy and Industrial Strategy","Department for Business, Energy and Industrial Strategy",05/05/2021,Current Grants To Private Sector - Npish,Energy Transformation And Clean Growth - International Energy And Climate Finance,Oxford Policy Management Ltd,391970,185674.61,International Climate Finance (Icf)-Current Grants To Private Sector - Npish,OX1 3HJ,VENDOR
"Department for Business, Energy and Industrial Strategy","Department for Business, Energy and Industrial Strategy",05/05/2021,Current Grants To Private Sector - Npish,Energy Transformation And Clean Growth - International Energy And Climate Finance,Pricewaterhousecoopers Llp,392014,47363.88,International Climate Finance (Icf)-Current Grants To Private Sector - Npish,WC2N 6RH,VENDOR
"Department for Business, Energy and Industrial Strategy","Department for Business, Energy and Industrial Strategy",05/05/2021,Current Grants To Private Sector - Npish,Energy Transformation And Clean Growth - International Energy And Climate Finance,Pricewaterhousecoopers Llp,392015,64558.38,International Climate Finance (Icf)-Current Grants To Private Sector - Npish,WC2N 6RH,VENDOR
"Department for Business, Energy and Industrial Strategy","Department for Business, Energy and Industrial Strategy",07/05/2021,Current Grants To Private Sector - Npish,Energy Transformation And Clean Growth - International Energy And Climate Finance,Mott Macdonald Ltd,392355,62329.55,International Climate Finance (Icf)-Current Grants To Private Sector - Npish,BN1 4FY,VENDOR
"Department for Business, Energy and Industrial Strategy","Department for Business, Energy and Industrial Strategy",07/05/2021,Contractor Expenditure,Energy Transformation And Clean Growth - International Energy And Climate Finance,Pricewaterhousecoopers Llp,392362,365105.63,International Climate Finance (Icf)-Contractor Expenditure,SE1 2RD,VENDOR
"Department for Business, Energy and Industrial Strategy","Department for Business, Energy and Industrial Strategy",07/05/2021,Contractor's Management Fees,Energy Transformation And Clean Growth - International Energy And Climate Finance,Ian Callaghan Associates Ltd,392410,4312.5,International Climate Finance (Icf)-Contractor's Management Fees,SP5 5PD,GRANT
"Department for Business, Energy and Industrial Strategy","Department for Business, Energy and Industrial Strategy",13/05/2021,Locally Employed Staff - Basic Salary,Energy Transformation And Clean Growth - International Energy And Climate Finance,"Foreign, Commonwealth And Development Office",393415,1690.44,International Climate Finance (Icf)-Locally Employed Staff - Basic Salary,MK11 9NQ,WGA ONLY
"Department for Business, Energy and Industrial Strategy","Department for Business, Energy and Industrial Strategy",13/05/2021,Locally Employed Staff - Basic Salary,Energy Transformation And Clean Growth - International Energy And Climate Finance,"Foreign, Commonwealth And Development Office",393421,1111.22,International Climate Finance (Icf)-Locally Employed Staff - Basic Salary,MK11 9NQ,WGA ONLY
"Department for Business, Energy and Industrial Strategy","Department for Business, Energy and Industrial Strategy",13/05/2021,Locally Employed Staff - Basic Salary,Energy Transformation And Clean Growth - International Energy And Climate Finance,"Foreign, Commonwealth And Development Office",393425,1641.05,International Climate Finance (Icf)-Locally Employed Staff - Basic Salary,MK11 9NQ,WGA ONLY
"Department for Business, Energy and Industrial Strategy","Department for Business, Energy and Industrial Strategy",17/05/2021,Consultancy Expenditure,Energy Transformation And Clean Growth - International Energy And Climate Finance,Market & Opinion Research International Ltd T/A Ipsos Mori,393477,22789.29,International Climate Finance (Icf)-Consultancy Expenditure,E1W 1YW,VENDOR
"Department for Business, Energy and Industrial Strategy","Department for Business, Energy and Industrial Strategy",14/05/2021,Other Travel,Energy Transformation And Clean Growth - International Energy And Climate Finance,"Personal Expense, Name Withheld",393568,158.06,International Climate Finance (Icf)-Other Travel,,EMPLOYEE
"Department for Business, Energy and Industrial Strategy","Department for Business, Energy and Industrial Strategy",14/05/2021,Current Grants To Private Sector - Npish,Energy Transformation And Clean Growth - International Energy And Climate Finance,Carbon Trust Mexico S.A. De C.V.,393658,44096.23,International Climate Finance (Icf)-Current Grants To Private Sector - Npish,3100,GRANT
"Department for Business, Energy and Industrial Strategy","Department for Business, Energy and Industrial Strategy",20/05/2021,Current Grants To Private Sector - Npish,Energy Transformation And Clean Growth - International Energy And Climate Finance,Pa Consulting Services Ltd,394342,72842.03,International Climate Finance (Icf)-Current Grants To Private Sector - Npish,SG8 6DP,VENDOR
"Department for Business, Energy and Industrial Strategy","Department for Business, Energy and Industrial Strategy",24/05/2021,Locally Employed Staff - Basic Salary,Energy Transformation And Clean Growth - International Energy And Climate Finance,"Foreign, Commonwealth And Development Office",394576,1572.47,International Climate Finance (Icf)-Locally Employed Staff - Basic Salary,MK10 1PX,WGA ONLY
"Department for Business, Energy and Industrial Strategy","Department for Business, Energy and Industrial Strategy",24/05/2021,Locally Employed Staff - Basic Salary,Energy Transformation And Clean Growth - International Energy And Climate Finance,"Foreign, Commonwealth And Development Office",394578,1307.47,International Climate Finance (Icf)-Locally Employed Staff - Basic Salary,MK10 1PX,WGA ONLY
"Department for Business, Energy and Industrial Strategy","Department for Business, Energy and Industrial Strategy",24/05/2021,Locally Employed Staff - Basic Salary,Energy Transformation And Clean Growth - International Energy And Climate Finance,"Foreign, Commonwealth And Development Office",394587,753.51,International Climate Finance (Icf)-Locally Employed Staff - Basic Salary,MK10 1PX,WGA ONLY
"Department for Business, Energy and Industrial Strategy","Department for Business, Energy and Industrial Strategy",25/05/2021,Current Grants To Private Sector - Npish,Energy Transformation And Clean Growth - International Energy And Climate Finance,Ove Arup And Partners Ltd,394606,-98962.32,International Climate Finance (Icf)-Current Grants To Private Sector - Npish,W1T 4BJ,VENDOR
"Department for Business, Energy and Industrial Strategy","Department for Business, Energy and Industrial Strategy",25/05/2021,Current Grants To Private Sector - Npish,Energy Transformation And Clean Growth - International Energy And Climate Finance,Ove Arup And Partners Ltd,394606,115105.57,International Climate Finance (Icf)-Current Grants To Private Sector - Npish,W1T 4BJ,VENDOR
"Department for Business, Energy and Industrial Strategy","Department for Business, Energy and Industrial Strategy",25/05/2021,Stationery,Energy Transformation And Clean Growth - International Energy And Climate Finance,"Personal Expense, Name Withheld",394730,32.1,Mf Devolved Admin-stationery,,EMPLOYEE
"Department for Business, Energy and Industrial Strategy","Department for Business, Energy and Industrial Strategy",26/05/2021,Additions - Other Loans - Central Government,Energy Transformation And Clean Growth - International Energy And Climate Finance,Uk Climate Investments Llp,394901,1300000,Vosper Gap Ame Utilisation Of Provision-additions - Other Loans - Central Government,EC2Y 9HD,VENDOR
"Department for Business, Energy and Industrial Strategy","Department for Business, Energy and Industrial Strategy",28/05/2021,Current Grants To Private Sector - Npish,Energy Transformation And Clean Growth - International Energy And Climate Finance,"World Wildlife Fund, Inc",395063,44245.51,International Climate Finance (Icf)-Current Grants To Private Sector - Npish,6100,GRANT
"Department for Business, Energy and Industrial Strategy","Department for Business, Energy and Industrial Strategy",28/05/2021,Stationery,Energy Transformation And Clean Growth - International Energy And Climate Finance,"Personal Expense, Name Withheld",395186,175.2,Mf Devolved Admin-stationery,,EMPLOYEE
"Department for Business, Energy and Industrial Strategy","Department for Business, Energy and Industrial Strategy",05/05/2021,Stationery,Energy Transformation And Clean Growth - International Energy And Climate Finance,"Personal Expense, Name Withheld",392029,484,Mf Devolved Admin-stationery,,EMPLOYEE
"Department for Business, Energy and Industrial Strategy","Department for Business, Energy and Industrial Strategy",06/05/2021,Professional Subscriptions,Energy Transformation And Clean Growth - International Energy And Climate Finance,"Personal Expense, Name Withheld",392269,179,Mf Devolved Admin-professional Subscriptions,,EMPLOYEE
"Department for Business, Energy and Industrial Strategy","Department for Business, Energy and Industrial Strategy",25/05/2021,Hospitality - Uk,Energy Transformation And Clean Growth - International Energy And Climate Finance,"Personal Expense, Name Withheld",394734,24.12,Mf Devolved Admin-hospitality - Uk,,EMPLOYEE
"Department for Business, Energy and Industrial Strategy","Department for Business, Energy and Industrial Strategy",26/05/2021,Postage,Energy Transformation And Clean Growth - International Energy And Climate Finance,"Personal Expense, Name Withheld",394944,79.85,Mf Devolved Admin-postage,,EMPLOYEE
"Department for Business, Energy and Industrial Strategy","Department for Business, Energy and Industrial Strategy",24/05/2021,Stationery,Energy And Security - Energy Development And Resilience,"Personal Expense, Name Withheld",394557,194.98,Mf Devolved Admin-stationery,,EMPLOYEE
"Department for Business, Energy and Industrial Strategy","Department for Business, Energy and Industrial Strategy",28/05/2021,Stationery,Energy And Security - Energy Development And Resilience,"Personal Expense, Name Withheld",395219,123.99,Mf Devolved Admin-stationery,,EMPLOYEE
"Department for Business, Energy and Industrial Strategy","Department for Business, Energy and Industrial Strategy",17/05/2021,International Subscriptions,Energy Transformation And Clean Growth - Science And Innovation,Building Research Establishment Ltd (Bre),379787,-4650,Non R And D Expenditure-international Subscriptions,WD25 9XX,VENDOR
"Department for Business, Energy and Industrial Strategy","Department for Business, Energy and Industrial Strategy",17/05/2021,International Subscriptions,Energy Transformation And Clean Growth - Science And Innovation,Building Research Establishment Ltd (Bre),379787,9300,Non R And D Expenditure-international Subscriptions,WD25 9XX,VENDOR
"Department for Business, Energy and Industrial Strategy","Department for Business, Energy and Industrial Strategy",10/05/2021,International Subscriptions,Energy Transformation And Clean Growth - Science And Innovation,Building Research Establishment Ltd (Bre),387435,600,Non R And D Expenditure-international Subscriptions,WD25 9XX,VENDOR
"Department for Business, Energy and Industrial Strategy","Department for Business, Energy and Industrial Strategy",17/05/2021,R & D Contractors,Energy Transformation And Clean Growth - Science And Innovation,Alexander Mann Solutions Ltd,391985,10050.55,Climate Science Capability-r & D Contractors,EC2N 3AQ,VENDOR
"Department for Business, Energy and Industrial Strategy","Department for Business, Energy and Industrial Strategy",11/05/2021,Professional Subscriptions,Energy Transformation And Clean Growth - Science And Innovation,"Personal Expense, Name Withheld",393155,275,Mf Devolved Admin-professional Subscriptions,,EMPLOYEE
"Department for Business, Energy and Industrial Strategy","Department for Business, Energy and Industrial Strategy",14/05/2021,R & D Outsourced Other,Energy Transformation And Clean Growth - Science And Innovation,Aecom Ltd,393639,25000,Delivery Of Beis Energy Innovation-r & D Outsourced Other,WC1V 6QS,VENDOR
"Department for Business, Energy and Industrial Strategy","Department for Business, Energy and Industrial Strategy",20/05/2021,R & D Outsourced Other,Energy Transformation And Clean Growth - Science And Innovation,Leeds Beckett University,394335,208244,Uk Energy Analysis-r & D Outsourced Other,LS2 8NU,VENDOR
"Department for Business, Energy and Industrial Strategy","Department for Business, Energy and Industrial Strategy",25/05/2021,Other Goods/Services,Energy Transformation And Clean Growth - Science And Innovation,Ricardo-aea Ltd,394796,6875.87,National Mitigation Analysis And Evidence Base-other Goods/Services,OX11 0QR,VENDOR
"Department for Business, Energy and Industrial Strategy","Department for Business, Energy and Industrial Strategy",13/05/2021,R & D Outsourced Other,Energy Transformation And Clean Growth - Science And Innovation,Nnfcc Ltd,385334,43362.5,Climate Science Capability-r & D Outsourced Other,YO10 5NY,VENDOR
"Department for Business, Energy and Industrial Strategy","Department for Business, Energy and Industrial Strategy",05/05/2021,Business Rates,Energy Transformation And Clean Growth - Science And Innovation,Uk Centre For Ecology And Hydrology,391932,6000,Climate Science Capability-business Rates,OX10 8BB,VENDOR
"Department for Business, Energy and Industrial Strategy","Department for Business, Energy and Industrial Strategy",18/05/2021,Business Rates,Energy Transformation And Clean Growth - Science And Innovation,Odb Technologies Ltd,393641,4830.7,Climate Science Capability-business Rates,P.O. Box 12249,GRANT
"Department for Business, Energy and Industrial Strategy","Department for Business, Energy and Industrial Strategy",25/05/2021,R & D Contractors,Energy Transformation And Clean Growth - Science And Innovation,Alexander Mann Solutions Ltd,394624,1647.64,Climate Science Capability-r & D Contractors,EC2N 3AQ,VENDOR
"Department for Business, Energy and Industrial Strategy","Department for Business, Energy and Industrial Strategy",26/05/2021,Stationery,Energy Transformation And Clean Growth - Science And Innovation,"Personal Expense, Name Withheld",394845,27.29,Default-stationery,,EMPLOYEE
"Department for Business, Energy and Industrial Strategy","Department for Business, Energy and Industrial Strategy",06/05/2021,Grant-in-aid To Arms Length Bodies,Energy And Security - Nuclear Directorate - Hsq,Civil Nuclear Police Authority (Civil Nuclear Constabulary),392174,117767.19,Civil Nuclear Police Uthority Grant In Aid-grant-in-aid To Arms Length Bodies,CW7 9GR,WGA ONLY
"Department for Business, Energy and Industrial Strategy","Department for Business, Energy and Industrial Strategy",06/05/2021,Other Professional Services,Energy And Security - Nuclear Directorate - Hsq,Office For Nuclear Regulation,392231,1452.63,Cyber Security Programme-other Professional Services,L20 7HS,VENDOR
"Department for Business, Energy and Industrial Strategy","Department for Business, Energy and Industrial Strategy",07/05/2021,Exp - Miscellaneous Expenditure - Iexpenses,Energy And Security - Nuclear Directorate - Hsq,"Personal Expense, Name Withheld",392464,32.49,Mf Devolved Admin-exp - Miscellaneous Expenditure - Iexpenses,,EMPLOYEE
"Department for Business, Energy and Industrial Strategy","Department for Business, Energy and Industrial Strategy",07/05/2021,Stationery,Energy And Security - Nuclear Directorate - Hsq,"Personal Expense, Name Withheld",392464,69.2,Mf Devolved Admin-stationery,,EMPLOYEE
"Department for Business, Energy and Industrial Strategy","Department for Business, Energy and Industrial Strategy",07/05/2021,Postage,Energy And Security - Nuclear Directorate - Hsq,"Personal Expense, Name Withheld",392464,72.61,Mf Devolved Admin-postage,,EMPLOYEE
"Department for Business, Energy and Industrial Strategy","Department for Business, Energy and Industrial Strategy",12/05/2021,Subsistence Uk,Energy And Security - Nuclear Directorate - Hsq,"Personal Expense, Name Withheld",393282,12,Mf Devolved Admin-subsistence Uk,,EMPLOYEE
"Department for Business, Energy and Industrial Strategy","Department for Business, Energy and Industrial Strategy",12/05/2021,Mileage Allowance Uk,Energy And Security - Nuclear Directorate - Hsq,"Personal Expense, Name Withheld",393282,306.23,Mf Devolved Admin-mileage Allowance Uk,,EMPLOYEE
"Department for Business, Energy and Industrial Strategy","Department for Business, Energy and Industrial Strategy",19/05/2021,Subsistence Uk,Energy And Security - Nuclear Directorate - Hsq,"Personal Expense, Name Withheld",394128,15,Mf Devolved Admin-subsistence Uk,,EMPLOYEE
"Department for Business, Energy and Industrial Strategy","Department for Business, Energy and Industrial Strategy",14/05/2021,Subsistence Uk,Energy And Security - Nuclear Directorate - Hsq,"Personal Expense, Name Withheld",393564,20.24,Gtr Staff And Admin Costs-subsistence Uk,,EMPLOYEE
"Department for Business, Energy and Industrial Strategy","Department for Business, Energy and Industrial Strategy",14/05/2021,Hotel & Accommodation Uk,Energy And Security - Nuclear Directorate - Hsq,"Personal Expense, Name Withheld",393564,64.23,Gtr Staff And Admin Costs-hotel & Accommodation Uk,,EMPLOYEE
"Department for Business, Energy and Industrial Strategy","Department for Business, Energy and Industrial Strategy",21/05/2021,Current Grants To Overseas Bodies,Energy And Security - Nuclear Directorate - Hsq,Nuclear Decommissioning Authority,394385,64819.55,Nuclear Security Programme-current Grants To Overseas Bodies,SW1A 2EG,VENDOR
"Department for Business, Energy and Industrial Strategy","Department for Business, Energy and Industrial Strategy",24/05/2021,Other Professional Services,Energy And Security - Nuclear Directorate - Hsq,Office For Nuclear Regulation,394535,683382.19,Eu Exit: Euratrom Prog-other Professional Services,FY1 9JN,VENDOR
"Department for Business, Energy and Industrial Strategy","Department for Business, Energy and Industrial Strategy",19/05/2021,Technical Advice / Services & Support,Energy And Security - Nuclear Directorate - Hsq,Dstl (Defence Science And Technology Laboratory),394169,3136.93,Dstl Technical Support To The Ukna-technical Advice / Services & Support,PO14 9HL,VENDOR
"Department for Business, Energy and Industrial Strategy","Department for Business, Energy and Industrial Strategy",05/05/2021,Other Professional Services,Energy And Security - Nuclear Directorate - Ss,Alexander Mann Solutions Ltd,392002,339.9,Mf Devolved Admin-other Professional Services,EC2N 3AQ,VENDOR
"Department for Business, Energy and Industrial Strategy","Department for Business, Energy and Industrial Strategy",06/05/2021,Exp - Miscellaneous Expenditure - Iexpenses,Energy And Security - Nuclear Directorate - Ss,"Personal Expense, Name Withheld",392275,465.28,Mf Devolved Admin-exp - Miscellaneous Expenditure - Iexpenses,,EMPLOYEE
"Department for Business, Energy and Industrial Strategy","Department for Business, Energy and Industrial Strategy",11/05/2021,Other Professional Services,Energy And Security - Nuclear Directorate - Ss,Alexander Mann Solutions Ltd,392941,295.56,Mf Devolved Admin-other Professional Services,EC2N 3AQ,VENDOR
"Department for Business, Energy and Industrial Strategy","Department for Business, Energy and Industrial Strategy",13/05/2021,Stationery,Energy And Security - Nuclear Directorate - Ss,"Personal Expense, Name Withheld",393397,42.72,Mf Devolved Admin-stationery,,EMPLOYEE
"Department for Business, Energy and Industrial Strategy","Department for Business, Energy and Industrial Strategy",13/05/2021,Exp - Miscellaneous Expenditure - Iexpenses,Energy And Security - Nuclear Directorate - Ss,"Personal Expense, Name Withheld",393404,65,Mf Devolved Admin-exp - Miscellaneous Expenditure - Iexpenses,,EMPLOYEE
"Department for Business, Energy and Industrial Strategy","Department for Business, Energy and Industrial Strategy",19/05/2021,Other Professional Services,Energy And Security - Nuclear Directorate - Ss,Alexander Mann Solutions Ltd,394101,266,Mf Devolved Admin-other Professional Services,EC2N 3AQ,VENDOR
"Department for Business, Energy and Industrial Strategy","Department for Business, Energy and Industrial Strategy",25/05/2021,Other Professional Services,Energy And Security - Nuclear Directorate - Ss,Alexander Mann Solutions Ltd,394607,354.67,Mf Devolved Admin-other Professional Services,EC2N 3AQ,VENDOR
"Department for Business, Energy and Industrial Strategy","Department for Business, Energy and Industrial Strategy",26/05/2021,Other Professional Services,Energy And Security - Nuclear Directorate - Ss,Government Actuarys Department,394886,1830.4,International-other Professional Services,SE1 9RJ,WGA ONLY
"Department for Business, Energy and Industrial Strategy","Department for Business, Energy and Industrial Strategy",26/05/2021,External Legal Advice And Service,Energy And Security - Nuclear Directorate - Ss,Landmark Chambers,394982,1620,Nuclear Policy-external Legal Advice And Service,EC4A 2HG,VENDOR
"Department for Business, Energy and Industrial Strategy","Department for Business, Energy and Industrial Strategy",26/05/2021,External Legal Advice And Service,Energy And Security - Nuclear Directorate - Ss,Landmark Chambers,394983,1660,Nuclear Policy-external Legal Advice And Service,EC4A 2HG,VENDOR
"Department for Business, Energy and Industrial Strategy","Department for Business, Energy and Industrial Strategy",07/05/2021,Stationery,Energy And Security - Nuclear Directorate - Ss,"Personal Expense, Name Withheld",392454,50,Mf Devolved Admin-stationery,,EMPLOYEE
"Department for Business, Energy and Industrial Strategy","Department for Business, Energy and Industrial Strategy",11/05/2021,Accounting Services,Energy And Security - Nuclear Directorate - Ss,Government Actuarys Department,393128,4097.16,Nuclear Liabilities Fund - Legal Advice-accounting Services,EC4A 1AB,WGA ONLY
"Department for Business, Energy and Industrial Strategy","Department for Business, Energy and Industrial Strategy",06/05/2021,Stationery,Energy And Security - Nuclear Directorate - Ss,"Personal Expense, Name Withheld",391866,298.85,Mf Devolved Admin-stationery,,EMPLOYEE
"Department for Business, Energy and Industrial Strategy","Department for Business, Energy and Industrial Strategy",10/05/2021,Hire Of Agency Staff,Energy And Security - Nuclear Directorate - Ss,Alexander Mann Solutions Ltd,392416,3465.3,Mf Devolved Admin-hire Of Agency Staff,EC2N 3AQ,VENDOR
"Department for Business, Energy and Industrial Strategy","Department for Business, Energy and Industrial Strategy",12/05/2021,Hire Of Agency Staff,Energy And Security - Nuclear Directorate - Ss,Alexander Mann Solutions Ltd,393057,3465.3,Mf Devolved Admin-hire Of Agency Staff,EC2N 3AQ,VENDOR
"Department for Business, Energy and Industrial Strategy","Department for Business, Energy and Industrial Strategy",18/05/2021,Personnel-related Expenditure,Energy And Security - Nuclear Directorate - Ss,National Nuclear Laboratory Ltd,393633,-500,Mf Devolved Admin-personnel-related Expenditure,WA3 6AE,VENDOR
"Department for Business, Energy and Industrial Strategy","Department for Business, Energy and Industrial Strategy",18/05/2021,Personnel-related Expenditure,Energy And Security - Nuclear Directorate - Ss,National Nuclear Laboratory Ltd,393633,1100,Mf Devolved Admin-personnel-related Expenditure,WA3 6AE,VENDOR
"Department for Business, Energy and Industrial Strategy","Department for Business, Energy and Industrial Strategy",18/05/2021,Business Rates,Energy And Security - Nuclear Directorate - Ss,National Nuclear Laboratory Ltd,393706,-60473.84,Nuclear Innovation And Research Office (Niro)-Business Rates,WA3 6AE,VENDOR
"Department for Business, Energy and Industrial Strategy","Department for Business, Energy and Industrial Strategy",18/05/2021,Business Rates,Energy And Security - Nuclear Directorate - Ss,National Nuclear Laboratory Ltd,393706,133042.45,Nuclear Innovation And Research Office (Niro)-Business Rates,WA3 6AE,VENDOR
"Department for Business, Energy and Industrial Strategy","Department for Business, Energy and Industrial Strategy",19/05/2021,Hire Of Agency Staff,Energy And Security - Nuclear Directorate - Ss,Alexander Mann Solutions Ltd,394080,2772.24,Mf Devolved Admin-hire Of Agency Staff,EC2N 3AQ,VENDOR
"Department for Business, Energy and Industrial Strategy","Department for Business, Energy and Industrial Strategy",27/05/2021,Hire Of Agency Staff,Energy And Security - Nuclear Directorate - Ss,Alexander Mann Solutions Ltd,394764,3465.3,Mf Devolved Admin-hire Of Agency Staff,EC2N 3AQ,VENDOR
"Department for Business, Energy and Industrial Strategy","Department for Business, Energy and Industrial Strategy",27/05/2021,Personnel-related Expenditure,Energy And Security - Nuclear Directorate - Ss,University Of Sheffield,395072,30000,Mf Devolved Admin-personnel-related Expenditure,S10 2TN,GRANT
"Department for Business, Energy and Industrial Strategy","Department for Business, Energy and Industrial Strategy",04/05/2021,Utilisation Of Provisions - British Energy,Energy And Security - British Energy Historic Payments,Nuclear Decommissioning Authority,391677,8221609.75,British Energy Historic Liabilities Funding-utilisation Of Provisions - British Energy,CA24 3HW,VENDOR
"Department for Business, Energy and Industrial Strategy","Department for Business, Energy and Industrial Strategy",04/05/2021,Utilisation Of Provisions - British Energy,Energy And Security - British Energy Historic Payments,Nuclear Decommissioning Authority,391678,2230070.92,British Energy Historic Liabilities Funding-utilisation Of Provisions - British Energy,CA24 3HW,VENDOR
"Department for Business, Energy and Industrial Strategy","Department for Business, Energy and Industrial Strategy",18/05/2021,Utilisation Of Provisions - British Energy,Energy And Security - British Energy Historic Payments,Nuclear Decommissioning Authority,393867,78113.62,British Energy Historic Liabilities Funding-utilisation Of Provisions - British Energy,CA24 3HW,VENDOR
"Department for Business, Energy and Industrial Strategy","Department for Business, Energy and Industrial Strategy",18/05/2021,Utilisation Of Provisions - British Energy,Energy And Security - British Energy Historic Payments,Nuclear Decommissioning Authority,393868,21187.92,British Energy Historic Liabilities Funding-utilisation Of Provisions - British Energy,CA24 3HW,VENDOR
"Department for Business, Energy and Industrial Strategy","Department for Business, Energy and Industrial Strategy",05/05/2021,Recruitment Advice And Services,Chief Scientific Adviser - Csa Dg Office,Cabinet Office,382888,65134.99,Mf Devolved Admin-recruitment Advice And Services,FY5 3FW,WGA ONLY
"Department for Business, Energy and Industrial Strategy","Department for Business, Energy and Industrial Strategy",05/05/2021,Recruitment Advice And Services,Chief Scientific Adviser - Csa Dg Office,Cabinet Office,391948,-65134.99,Mf Devolved Admin-recruitment Advice And Services,FY5 3FW,WGA ONLY
"Department for Business, Energy and Industrial Strategy","Department for Business, Energy and Industrial Strategy",07/05/2021,Stationery,Energy Transformation And Clean Growth - Clean Growth,"Personal Expense, Name Withheld",391765,18.99,Mf Devolved Admin-stationery,,EMPLOYEE
"Department for Business, Energy and Industrial Strategy","Department for Business, Energy and Industrial Strategy",11/05/2021,Publications,Energy Transformation And Clean Growth - Clean Growth,Allied Publicity Services (Manchester) Ltd T/A Aps Group,392350,3404.27,Clean Growth-publications,SK3 0ZP,VENDOR
"Department for Business, Energy and Industrial Strategy","Department for Business, Energy and Industrial Strategy",11/05/2021,Publications,Energy Transformation And Clean Growth - Clean Growth,Allied Publicity Services (Manchester) Ltd T/A Aps Group,392655,-3404.27,Clean Growth-publications,SK3 0ZP,VENDOR
"Department for Business, Energy and Industrial Strategy","Department for Business, Energy and Industrial Strategy",18/05/2021,Ppm Consultancy,Energy Transformation And Clean Growth - Clean Growth,Baringa Partners Llp,393871,13977,Mf Devolved Admin-ppm Consultancy,SW1E 6AJ,VENDOR
"Department for Business, Energy and Industrial Strategy","Department for Business, Energy and Industrial Strategy",24/05/2021,Publications,Energy Transformation And Clean Growth - Clean Growth,Royal Academy Of Engineering Rae,394507,1050,Clean Growth-publications,SW1Y 5DG,VENDOR
"Department for Business, Energy and Industrial Strategy","Department for Business, Energy and Industrial Strategy",07/05/2021,Grant-in-aid To Arms Length Bodies,Energy Transformation And Clean Growth - Clean Growth,The Committee On Climate Change,392238,425371,Committee On Climate Change Grant In Aid Payments-grant-in-aid To Arms Length Bodies,SW1W 8NR,GRANT
"Department for Business, Energy and Industrial Strategy","Department for Business, Energy and Industrial Strategy",04/05/2021,Research And Development Expenditure,Energy And Security - Renewable Electricity Directorate,Informa Markets (Uk) Ltd,391896,13270.52,Renewable Energy Development Support-research And Development Expenditure,SW1P 1WG,VENDOR
"Department for Business, Energy and Industrial Strategy","Department for Business, Energy and Industrial Strategy",05/05/2021,Technical Advice / Services & Support,Energy And Security - Renewable Electricity Directorate,Element Energy Ltd,391949,19940.4,Renewable Energy Development Support-technical Advice / Services & Support,CB5 8AQ,VENDOR
"Department for Business, Energy and Industrial Strategy","Department for Business, Energy and Industrial Strategy",11/05/2021,Research And Development Expenditure,Energy And Security - Renewable Electricity Directorate,Ove Arup And Partners Ltd,393178,72000,Renewable Energy Development Support-research And Development Expenditure,W1T 4BQ,VENDOR
"Department for Business, Energy and Industrial Strategy","Department for Business, Energy and Industrial Strategy",25/05/2021,Stationery,Energy And Security - Renewable Electricity Directorate,"Personal Expense, Name Withheld",394720,160,Eu Exit Core Beis Staff: Energy & Climate Workstream Adm-stationery,,EMPLOYEE
"Department for Business, Energy and Industrial Strategy","Department for Business, Energy and Industrial Strategy",11/05/2021,Grant-in-aid To Arms Length Bodies,Energy And Security - Energy Development And Resilience,Oil And Gas Authority,393183,625000,Oga Grant In Aid-grant-in-aid To Arms Length Bodies,WC1B 3HF,VENDOR
"Department for Business, Energy and Industrial Strategy","Department for Business, Energy and Industrial Strategy",18/05/2021,Stationery,Energy And Security - Energy Development And Resilience,"Personal Expense, Name Withheld",393908,18.69,Mf Devolved Admin-stationery,,EMPLOYEE
"Department for Business, Energy and Industrial Strategy","Department for Business, Energy and Industrial Strategy",04/05/2021,Clearing - Cost - Assets Under Construction - Internally Developed Software,Energy And Security - Energy Development And Resilience,Fivium Ltd,385603,-16449.68,Oil And Gas It Environmental Portal Costs-clearing - Cost - Assets Under Construction - Internally Developed Software,W1F 7LD,VENDOR
"Department for Business, Energy and Industrial Strategy","Department for Business, Energy and Industrial Strategy",04/05/2021,Clearing - Cost - Assets Under Construction - Internally Developed Software,Energy And Security - Energy Development And Resilience,Fivium Ltd,385603,4956.71,Oil And Gas It Environmental Portal Costs-clearing - Cost - Assets Under Construction - Internally Developed Software,W1F 7LD,VENDOR
"Department for Business, Energy and Industrial Strategy","Department for Business, Energy and Industrial Strategy",04/05/2021,Clearing - Cost - Assets Under Construction - Internally Developed Software,Energy And Security - Energy Development And Resilience,Fivium Ltd,385603,9250,Oil And Gas It Environmental Portal Costs-clearing - Cost - Assets Under Construction - Internally Developed Software,W1F 7LD,VENDOR
"Department for Business, Energy and Industrial Strategy","Department for Business, Energy and Industrial Strategy",04/05/2021,Clearing - Cost - Assets Under Construction - Internally Developed Software,Energy And Security - Energy Development And Resilience,Fivium Ltd,385603,18692.65,Oil And Gas It Environmental Portal Costs-clearing - Cost - Assets Under Construction - Internally Developed Software,W1F 7LD,VENDOR
"Department for Business, Energy and Industrial Strategy","Department for Business, Energy and Industrial Strategy",04/05/2021,Other Staff Welfare Costs,Energy And Security - Energy Development And Resilience,Granite Occupational Health Ltd,391833,125,Environmental Consultation Projects-other Staff Welfare Costs,AB32 6FJ,VENDOR
"Department for Business, Energy and Industrial Strategy","Department for Business, Energy and Industrial Strategy",05/05/2021,Other Travel,Energy And Security - Energy Development And Resilience,"Personal Expense, Name Withheld",392023,15,Environmental Consultation Projects-other Travel,,EMPLOYEE
"Department for Business, Energy and Industrial Strategy","Department for Business, Energy and Industrial Strategy",05/05/2021,Mileage Allowance Uk,Energy And Security - Energy Development And Resilience,"Personal Expense, Name Withheld",392023,36,Environmental Consultation Projects-mileage Allowance Uk,,EMPLOYEE
"Department for Business, Energy and Industrial Strategy","Department for Business, Energy and Industrial Strategy",05/05/2021,Other Professional Services,Energy And Security - Energy Development And Resilience,The Scottish Government,392054,96128.11,Environmental Consultation Projects-other Professional Services,EH6 6QQ,WGA ONLY
"Department for Business, Energy and Industrial Strategy","Department for Business, Energy and Industrial Strategy",07/05/2021,Professional Subscriptions,Energy And Security - Energy Development And Resilience,"Personal Expense, Name Withheld",392465,213.75,Environmental Consultation Projects-professional Subscriptions,,EMPLOYEE
"Department for Business, Energy and Industrial Strategy","Department for Business, Energy and Industrial Strategy",07/05/2021,Mileage Allowance Uk,Energy And Security - Energy Development And Resilience,"Personal Expense, Name Withheld",392470,18,Environmental Consultation Projects-mileage Allowance Uk,,EMPLOYEE
"Department for Business, Energy and Industrial Strategy","Department for Business, Energy and Industrial Strategy",07/05/2021,Other Travel,Energy And Security - Energy Development And Resilience,"Personal Expense, Name Withheld",392470,18,Environmental Consultation Projects-other Travel,,EMPLOYEE
"Department for Business, Energy and Industrial Strategy","Department for Business, Energy and Industrial Strategy",07/05/2021,Exp - Miscellaneous Expenditure - Iexpenses,Energy And Security - Energy Development And Resilience,"Personal Expense, Name Withheld",392470,23.48,Environmental Consultation Projects-exp - Miscellaneous Expenditure - Iexpenses,,EMPLOYEE
"Department for Business, Energy and Industrial Strategy","Department for Business, Energy and Industrial Strategy",10/05/2021,Training And Development Expenditure,Energy And Security - Energy Development And Resilience,Oilennium Ltd,392826,365,Environmental Consultation Projects-training And Development Expenditure,NR30 1JE,VENDOR
"Department for Business, Energy and Industrial Strategy","Department for Business, Energy and Industrial Strategy",10/05/2021,Taxi Services Uk,Energy And Security - Energy Development And Resilience,"Personal Expense, Name Withheld",392919,44,Environmental Consultation Projects-taxi Services Uk,,EMPLOYEE
"Department for Business, Energy and Industrial Strategy","Department for Business, Energy and Industrial Strategy",11/05/2021,Other Travel,Energy And Security - Energy Development And Resilience,"Personal Expense, Name Withheld",393152,7.65,Environmental Consultation Projects-other Travel,,EMPLOYEE
"Department for Business, Energy and Industrial Strategy","Department for Business, Energy and Industrial Strategy",11/05/2021,Subsistence Uk,Energy And Security - Energy Development And Resilience,"Personal Expense, Name Withheld",393152,10,Environmental Consultation Projects-subsistence Uk,,EMPLOYEE
"Department for Business, Energy and Industrial Strategy","Department for Business, Energy and Industrial Strategy",11/05/2021,Mileage Allowance Uk,Energy And Security - Energy Development And Resilience,"Personal Expense, Name Withheld",393152,45,Environmental Consultation Projects-mileage Allowance Uk,,EMPLOYEE
"Department for Business, Energy and Industrial Strategy","Department for Business, Energy and Industrial Strategy",11/05/2021,Other Travel,Energy And Security - Energy Development And Resilience,"Personal Expense, Name Withheld",393153,15,Environmental Consultation Projects-other Travel,,EMPLOYEE
"Department for Business, Energy and Industrial Strategy","Department for Business, Energy and Industrial Strategy",11/05/2021,Subsistence Uk,Energy And Security - Energy Development And Resilience,"Personal Expense, Name Withheld",393153,23,Environmental Consultation Projects-subsistence Uk,,EMPLOYEE
"Department for Business, Energy and Industrial Strategy","Department for Business, Energy and Industrial Strategy",11/05/2021,Mileage Allowance Uk,Energy And Security - Energy Development And Resilience,"Personal Expense, Name Withheld",393153,47.7,Environmental Consultation Projects-mileage Allowance Uk,,EMPLOYEE
"Department for Business, Energy and Industrial Strategy","Department for Business, Energy and Industrial Strategy",17/05/2021,Training And Development Expenditure,Energy And Security - Energy Development And Resilience,Survivex Tms Ltd,393703,-5000,Environmental Consultation Projects-training And Development Expenditure,AB21 0LQ,VENDOR
"Department for Business, Energy and Industrial Strategy","Department for Business, Energy and Industrial Strategy",17/05/2021,Training And Development Expenditure,Energy And Security - Energy Development And Resilience,Survivex Tms Ltd,393703,5500,Environmental Consultation Projects-training And Development Expenditure,AB21 0LQ,VENDOR
"Department for Business, Energy and Industrial Strategy","Department for Business, Energy and Industrial Strategy",21/05/2021,Miscellaneous Expenditure,Energy And Security - Energy Development And Resilience,Hm Revenue And Customs,394382,19786.04,Other Budget Adjustments-miscellaneous Expenditure,BX5 5AB,WGA ONLY
"Department for Business, Energy and Industrial Strategy","Department for Business, Energy and Industrial Strategy",21/05/2021,Other Professional Services,Energy And Security - Energy Development And Resilience,Hm Revenue And Customs,394382,315717,Environmental Consultation Projects-other Professional Services,BX5 5AB,WGA ONLY
"Department for Business, Energy and Industrial Strategy","Department for Business, Energy and Industrial Strategy",25/05/2021,Taxi Services Uk,Energy And Security - Energy Development And Resilience,"Personal Expense, Name Withheld",394717,60,Environmental Consultation Projects-taxi Services Uk,,EMPLOYEE
